Workbook

Sheet INICIO
D7: Proyecto: | E7: PROYECTO XXXXXXX XXXXXXXXXXXX
D9: Empresa: | E9: EMPRESA XXXXXXXXXXX XXXXXXXXXXX
D11: Fecha inicio: | E11: 1900-01-01 | F11: Fecha estimada de fin: | G11: 1901-01-01
D13: Fecha de diagnóstico: | E13: XX/XX/XXXX
M18: 0
M19: 1
M20: 2
M21: 3
M22: 4
M23: 5
D28: DESARROLLADO POR: | E28: Carolina Barrero Vélez | F28: Ingeniera Electricistra
E29: Diego Mauricio Sarmiento | F29: Ingeniero Civil
E30: Lina María Silva Rodriguez | F30: Ingeniera Electricista | G30: AGOSTO 2015

Sheet DEFINICIÓN (hidden)
D7: A continuación se solicitará que según las políticas de su compañía o para el tipo específico de proyecto que desee evaluar diligencie el peso (porcentualmente) que cada una de la áreas debe tener dentro de la evaluación.
D10: Adicionalmente para cada una de las áreas de conocimiento debe seleccionar cual es el nivel de definición (En una escala de uno (1) a cinco (5)) que en su compañía se considera aceptable para un proyecto en étapa de EJECUCIÓN. (En caso de asignar un peso de cero a una o varias de las áreas, es indiferente seleccionar o no un nivel de aceptación)
G13: PESO (100%) | I13: NIVEL DE ACEPTACIÓN
D15: 1. Integración | G15: 0.1 | I15: 5 | P15: 0
P16: 1
D17: 2. Alcance | G17: 0.1 | I17: 5 | P17: 2
P18: 3
D19: 3. Tiempo | G19: 0.1 | I19: 5 | P19: 4
P20: 5
D21: 4. Costos | G21: 0.1 | I21: 5
D23: 5. Calidad | G23: 0.1 | I23: 5
D25: 6. Riesgos | G25: 0.1 | I25: 5
D27: 7. Stakeholders | G27: 0.1 | I27: 5
D29: 8. Comunicaciones | G29: 0.1 | I29: 5
D31: 9. Adquisiciones | G31: 0.1 | I31: 5
D33: 10. Recursos Humanos | G33: 0.1 | I33: 5
D36: TOTAL | G36: =+SUM(G15,G17,G19,G21,G23,G25,G27,G29,G31,G33) -> 1 | I36: =+(G15*I15+G17*I17+G19*I19+G21*I21+G23*I23+G25*I25+G27*I27+G29*I29+G31*I31+G33*I33) -> 5
D37: =IF(SUM($G$15,$G$17,$G$19,$G$21,$G$23,$G$25,$G$27,$G$29,$G$31,$G$33)=100%,"","Por favor verifique que la suma de 100%") -> 

Sheet FORMULARIO DEFINICIÓN (hidden)
D6: Califique cada uno de los aspecto a continuación entre cero (0) y cinco (5) siendo cinco (5) el puntaje ideal que representará en el resultado un nivel de definición óptimo y cero (0) el caso en que no aplica para el proyecto.
Z8: 0
Z9: 1
Z10: 2
D11: 1. | G11: DEFINICIÓN DE INTEGRACIÓN DEL PROYECTO | P11: CALIFICACIÓN | Q11: OBSERVACIONES | Z11: 3
Z12: 4
E13: 1.1. | I13: Se elaboró y firmó el acta de constitución, con la cual se dio inicio formal al proyecto y se nombró al gerente del mismo. | Z13: 5
E15: 1.2. | I15: Se definió formalmente el propósito que dio origen al desarrollo del proyecto.
E17: 1.3. | I17: Están definidos los objetivos del proyecto y la forma en que el cumplimiento de los mismos contribuyen al cumplimiento de los objetivos estratégicos de la compañía.
E19: 1.4. | I19: Se definieron los criterios de éxito para el proyecto directamente relacionados con el cumplimiento de los objetivos del proyecto.
E21: 1.5. | I21: Se designó al responsable del proyecto, cuyo nivel de autoridad y aval para usar los recursos de la organización fue establecido por el patrocinador del proyecto.
E23: 1.6. | I23: Se elaboró el plan de gerencia del proyecto, que incluye de forma integrada todos los planes secundarios.
E25: 1.7. | I25: El plan de gerencia incluye el procedimiento para dirigir y gestionar el trabajo del proyecto.
E27: 1.8. | I27: Se definió el proceso para monitorear y controlar el avance del proyecto, a fin de cumplir con los objetivos de desempeño definidos anteriormente.
E29: 1.9. | I29: Existe un procedimiento formalmente aprobado para el control de cambios durante desarrollo del proyecto.
E31: 1.10. | I31: Se cuenta con un procedimiento para el cierre del proyecto, la entrega de los productos y la documentación final del proyecto.
D33: 2. | G33: DEFINICIÓN DEL ALCANCE
E35: 2.1. | H35: Producto
F37: 2.1.1. | I37: Los entregables están definidos.
F39: 2.1.2. | I39: Existe un documento formal (declaración de alcance) en el que se describe cada uno de los entregables y el trabajo necesario para desarrollar cada uno de ellos.
F41: 2.1.3. | I41: Se realizó un levantamiento completo de los requerimientos del producto del proyecto.
F43: 2.1.4. | I43: Se definieron los criterios de aceptación de los entregables del proyecto.
F45: 2.1.5. | I45: Se definieron las especificaciones para los entregables del proyecto.
F47: 2.1.6. | I47: El producto se definió en cuanto a sus características técnicas (diseño) de una manera clara y evolutiva según el desarrollo del proyecto.
F49: 2.1.7. | I49: Se cuenta con un plan de gestión que permita realizar cambios en el producto del proyecto cuando un cambio en el alcance del proyecto lo requiera.
F51: 2.1.8. | I51: Existe una lista de exclusiones claramente establecidas para el alcance del producto del proyecto.
E53: 2.2. | H53: Proyecto
F55: 2.2.1. | I55: Se elaboró el plan de gestión de alcance para el proyecto.
F57: 2.2.2. | I57: Se estableció un procedimiento para comparar periódicamente la línea base de alcance con el desempeño real del proyecto.
F59: 2.2.3. | I59: Se definieron supuestos y restricciones para el desarrollo del proyecto.
F61: 2.2.4. | I61: Se definió una estructura de desglose del trabajo (WBS) para realizar todo el trabajo definido en el alcance del proyecto.
F63: 2.2.5. | I63: Se elaboró el diccionario de la WBS.
F65: 2.2.6. | I65: Se definieron los recursos necesarios para la gestión de alcance del proyecto.
D67: 3. | G67: DEFINICIÓN DEL TIEMPO
E69: 3.1. | I69: Se elaboró el plan de gestión del cronograma para el proyecto.
E71: 3.2. | I71: Se elaboró el cronograma detallado del proyecto.
E73: 3.3. | I73: Se definió de forma específica cada una de las actividades necesarias para el desarrollo del proyecto.
E75: 3.4. | I75: Se establecieron los siguientes atributos para las actividades propuestas.
I76: (Marque con una X según corresponda) | K76: SI | M76: NO
I78: • | J78: Codificación
I80: • | J80: Fecha de inicio
I82: • | J82: Fecha de terminación
I84: • | J84: Peso (Importancia)
I86: • | J86: Predecesoras
I88: • | J88: Sucesoras
I90: • | J90: Recursos
I92: • | J92: Inicio temprano
I94: • | J94: Inicio tardío
I96: • | J96: Responsable
E98: 3.5. | I98: Se realizó un diagrama de red para definir la secuenciación de las actividades.
E100: 3.6. | I100: Se identificó y analizó la ruta critica del proyecto
E102: 3.7. | I102: Se establecieron los hitos del proyecto (puntos de control de la terminación de actividades importantes)
E104: 3.8. | I104: Se estimaron los recursos necesarios para llevar a cabo cada actividad del proyecto.
E106: 3.9. | I106: Se estimó la duración de cada una de las actividades del proyecto.
E108: 3.10. | I108: Se definió la línea base del cronograma que permite hacer seguimiento y control al proyecto.
E110: 3.11. | I110: Se definieron los recursos necesarios para la gestión del cronograma del proyecto.
D112: 4. | G112: DEFINICIÓN DE LOS COSTOS
E114: 4.1. | I114: Se definió el plan de gestión de costos del proyecto.
E116: 4.2. | I116: Se estimaron los recursos necesarios para la realización de las actividades
E118: 4.3. | I118: Las estimaciones de costos se realizaron con el nivel de exactitud y precisión definido por la organización.
E120: 4.4. | I120: Se cuenta en la compañía con una base documental de referencia para la estimación de costos.
E122: 4.5. | I122: Se definieron los procedimientos para la medición del desempeño de los costos..
E124: 4.6. | I124: Se elaboraron los formatos de los informes de gestión de costos del proyecto
E126: 4.7. | I126: El plan de gestión de costos incluye el procedimiento para el registro de los costos del proyecto.
E128: 4.8. | I128: Se cuenta con un presupuesto para el proyecto definido por actividades y enlazado al cronograma.
E130: 4.9. | I130: Dentro del presupuesto estimado para el proyecto se cuenta con una reserva de gerencia establecida con aprobación del sponsor del proyecto.
E132: 4.10. | I132: Dentro del presupuesto estimado para el proyecto se cuenta con una reserva de contingencia establecida con aprobación del sponsor del proyecto para gestionar la ocurrencia de riesgos.
E134: 4.11. | I134: Se estableció el uso de métricas de Valor ganado (Earned Value) para la gestión de los costos con una periodicidad claramente definida.
E136: 4.12. | I136: Se definieron los recursos necesarios para la gestión de costos del proyecto.
D138: 5. | G138: DEFINICIÓN DE CALIDAD
E140: 5.1. | I140: Se identificaron los requisitos y/o estándares de calidad para el proyecto y sus entregables.
E142: 5.2. | I142: Se elaboró el plan de gestión de calidad del proyecto para los procesos de dirección del proyecto y el producto.
E144: 5.3. | I144: El plan de gestión de calidad incluye los procedimientos para asegurar la calidad del proyecto.
E146: 5.4. | I146: El plan de gestión de calidad incluye los procedimientos para controlar la calidad del proyecto.
E148: 5.5. | I148: Se definieron las herramientas de gestión y control de calidad a utilizar en el proyecto.
E150: 5.6. | I150: Se definió el propósito y la frecuencia de aplicación de auditorias internas de calidad.
E152: 5.7. | I152: Se estableció el plan de mejoras del proceso, el cual incluye los pasos para analizar los procesos e identificar las actividades que generan valor para el proyecto.
E154: 5.8. | I154: Se definieron las métricas de calidad a ser utilizadas en el proyecto.
E156: 5.9. | I156: Se definieron las listas de verificación ( o listas de control de calidad) que incorporan los criterios de aceptación incluidos en la línea base de alcance.
E158: 5.10. | I158: Se definieron los recursos necesarios para gestionar la calidad del proyecto.
D160: 6. | G160: DEFINICIÓN DE RIESGOS
E162: 6.1. | I162: Se realizó un proceso de identificación de riesgos para el desarrollo del proyecto.
E164: 6.2. | I164: Se realizó un proceso de medición de impacto y probabilidad de los riesgos identificados, de forma cualitativa o cuantitativa según la complejidad del proyecto lo amerite.
E166: 6.3. | I166: Se plantearon estrategias y acciones claras para responder ante la ocurrencia de un riesgo identificado.
E168: 6.4. | I168: Se tiene una estrategia de respuesta ante riesgos desconocidos (imprevistos), como la constitución de una reserva de contingencias.
E170: 6.5. | I170: Se definió un plan de gestión de los riesgos formal para el proyecto que incluye los aspectos arriba definidos.
E172: 6.6. | I172: Los niveles de tolerancia al riesgo del proyecto se establecieron mediante información proveniente de los stakeholders afectados ante la ocurrencia de los riesgos definidos.
E174: 6.7. | I174: Se realizó una estructura de desglose del riesgo definiendo en detalle la exposición del proyecto a cada uno de los riesgos y las fuentes de los mismos.
E176: 6.8. | I176: Se incluyeron en las líneas base de costos y tiempo las acciones de mitigación de los riesgos identificadas.
E178: 6.9. | I178: Se constituyó una reserva de contingencia dentro del presupuesto del proyecto para la gestión de los riesgos y un procedimiento para la gestión de dicha reserva.
D180: 7. | G180: DEFINICIÓN DE STAKEHOLDERS
E182: 7.1. | I182: Se llevó a cabo la identificación de los interesados del proyecto, que incluye sus expectativas y requerimientos del proyecto.
E184: 7.2. | I184: Se realizó el plan de gestión de stakeholders del proyecto.
E186: 7.3. | I186: Se definieron los niveles de participación actual y deseado de los interesados clave.
E188: 7.4. | I188: Se definió el alcance e impacto del cambio para los interesados.
E190: 7.5. | I190: Se definieron las interrelaciones y posible superposición entre interesados que se hayan identificado.
E192: 7.6. | I192: Se definió el impacto esperado en la participación de los interesados de acuerdo al plan de comunicaciones.
E194: 7.7. | I194: Se definió el método para actualizar y refinar el plan de gestión de los interesados.
E196: 7.8. | I196: Se definieron los recursos necesarios para la gestión de interesados del proyecto.
D198: 8. | G198: DEFINICIÓN DE COMUNICACIONES
E200: 8.1. | I200: Se definió el plan de gestión de las comunicaciones.
E202: 8.2. | I202: Se realizó la identificación de requerimientos de comunicación entre los diferentes stakeholders del proyecto.
E204: 8.3. | I204: Se definió la información que debe ser comunicada a cada stakeholder.
E206: 8.4. | I206: Se definió el plazo y la frecuencia para la distribución de la información requerida y para la recepción de la respuesta correspondiente.
E208: 8.5. | I208: Se definieron los responsables de comunicar la información.
E210: 8.6. | I210: Se definió la persona responsable de autorizar la divulgación de información confidencial.
E212: 8.7. | I212: Se definieron las personas o grupos que recibirán la información.
E214: 8.8. | I214: Se definieron los métodos o tecnologías utilizados para transmitir la información.
E216: 8.9. | I216: Se definieron los recursos necesarios para la gestión de comunicaciones del proyecto.
E218: 8.10. | I218: Se definió el método para actualizar y refinar el plan de gestión de las comunicaciones.
E220: 8.11. | I220: Se elaboraron diagramas de flujo de la información que circula dentro del proyecto y los flujos de trabajo con la posible secuencia de autorizaciones.
E222: 8.12. | I222: Se definieron las restricciones de comunicación del proyecto.
E224: 8.13. | I224: Se elaboraron las plantillas para las reuniones y los mensajes de correo electrónico.
D226: 9. | G226: DEFINICIÓN DE ADQUISICIONES
E228: 9.1. | I228: Se identificaron las necesidades del proyecto que pueden ser suplidas mediante la adquisición de bienes o servicios.
E230: 9.2. | I230: Se definió el plan de gestión de adquisiciones del proyecto.
E232: 9.3. | I232: Se realizó el análisis "Hacer o Comprar" con el fin de establecer la mejor alternativa entre hacerlo en casa vs contratarlo y administrar el contrato.
E234: 9.4. | I234: Se definieron los criterios de selección o caracteristicas que deben tener los proveedores para cubrir las necesidades del proyecto.
E236: 9.5. | I236: Se definieron y socializaron los tipos de contrato para cada tipo de compra necesaria para el desarrollo del proyecto.
E238: 9.6. | I238: Se definieron los documentos a usar durante la solicitud de propuestas y selección de proveedores.
E240: 9.7. | I240: Se establecieron los procedimientos y políticas de la organización para la gestión de adquisiciones.
E242: 9.8. | I242: Se elaboró el cronograma de adquisiciones para cada entregable del proyecto.
E244: 9.9. | I244: Se definieron las características y las cantidades de lo que se va adquirir para el desarrollo de cada entregable.
E246: 9.10. | I246: Se definieron las garantías a exigir como parte del plan de gestión de adquisiciones.
E248: 9.11. | I248: Se establecieron las métricas a utilizar para gestionar los contratos y evaluar los proveedores.
E250: 9.12. | I250: Se definieron los recursos necesarios para la gestión de adquisiciones del proyecto.
D252: 10. | G252: DEFINICIÓN DE RECURSOS HUMANOS
E254: 10.1. | I254: Se desarrolló el plan de recursos humanos para el proyecto.
E256: 10.2. | I256: Los roles y responsabilidades requeridos por el proyecto fueron identificados y documentados (Matriz RAM).
E258: 10.3. | I258: La habilidades que deben poseer los integrantes del equipo de trabajo del proyecto fueron definidas
E260: 10.4. | I260: Se desarrollaron el organigrama y la descripción de cargos del proyecto.
E262: 10.5. | I262: Las relaciones de comunicación entre el personal del proyecto fueron definidas y documentadas.
E264: 10.6. | I264: Cada actividad del proyecto tiene un único responsable, de manera que no hay actividades sin responsable asignado.
E266: 10.7. | I266: El plan de gestión de recursos humanos incluye un plan detallado de adquisición de personal.
E268: 10.8. | I268: Se definió y documentó un plan de capacitación para los recursos humanos del proyecto.
E270: 10.9. | I270: Se definió y socializó un programa de reconocimiento y recompensas destinado a motivar a los integrantes del equipo de trabajo del proyecto.
E272: 10.10. | I272: Las herramientas para la evaluación del personal fueron definidas inicialmente.
E274: 10.11. | I274: El plan de gestión de recursos humanos incluye el cronograma de contratación y liberación de recursos humanos del proyecto.
E276: 10.12. | I276: Se definieron los recursos necesarios para la gestión de recursos humanos del proyecto.

Sheet RESULTADOS DEFINICIÓN (hidden)
C7: COD. | G7: DESCRIPCIÓN | P7: CALIFICACIÓN | Q7: FACTOR | R7: RESULTADOS | S7: PORCENTAJE | U7: ACEPTABLE | W7: MÁXIMO POSIBLE
R8: PUNTAJE | S8: PORCENTAJE | U8: PUNTAJE | W8: PUNTAJE | X8: PORCENTAJE
G9: TOTAL | R9: =SUBTOTAL(9,R11:R277) -> 0 | S9: =+R9/W9 -> 0 | U9: =SUBTOTAL(9,U11:U276) -> 500 | W9: 500 | X9: =+X11+X33+X67+X112+X138+X160+X180+X198+X226+X252 -> 1
D11: 1. | G11: DEFINICIÓN DE INTEGRACIÓN DEL PROYECTO | R11: =+SUBTOTAL(9,R13:R31) -> 0 | S11: =IF(W11=0,0,R11/W11) -> 0 | U11: =SUBTOTAL(9,U13:U31) -> 50 | W11: =+$W$9*X11 -> 50 | X11: =+DEFINICIÓN!G15 -> 0.1
E13: 1.1. | I13: Se elaboró y firmó el acta de constitución, con la cual se dio inicio formal al proyecto y se nombró al gerente del mismo. | O13: 1 | P13: =+O13-1 -> 0 | Q13: 2 | R13: =+P13*W13/5 -> 0 | S13: =IF(W13=0,0,R13/W13) -> 0 | U13: =+DEFINICIÓN!$I$15*W13/5 -> 5 | W13: =+W$11/10 -> 5 | X13: =+W13/$W$9 -> 0.01
E15: 1.2. | I15: Se definió formalmente el propósito que dio origen al desarrollo del proyecto. | O15: 1 | P15: =+O15-1 -> 0 | Q15: 2 | R15: =+P15*W15/5 -> 0 | S15: =IF(W15=0,0,R15/W15) -> 0 | U15: =+DEFINICIÓN!$I$15*W15/5 -> 5 | W15: =+W$11/10 -> 5 | X15: =+W15/$W$9 -> 0.01
E17: 1.3. | I17: Están definidos los objetivos del proyecto y la forma en que el cumplimiento de los mismos contribuyen al cumplimiento de los objetivos estratégicos de la compañía. | O17: 1 | P17: =+O17-1 -> 0 | Q17: 2 | R17: =+P17*W17/5 -> 0 | S17: =IF(W17=0,0,R17/W17) -> 0 | U17: =+DEFINICIÓN!$I$15*W17/5 -> 5 | W17: =+W$11/10 -> 5 | X17: =+W17/$W$9 -> 0.01
E19: 1.4. | I19: Se definieron los criterios de éxito para el proyecto directamente relacionados con el cumplimiento de los objetivos del proyecto. | O19: 1 | P19: =+O19-1 -> 0 | Q19: 2 | R19: =+P19*W19/5 -> 0 | S19: =IF(W19=0,0,R19/W19) -> 0 | U19: =+DEFINICIÓN!$I$15*W19/5 -> 5 | W19: =+W$11/10 -> 5 | X19: =+W19/$W$9 -> 0.01
E21: 1.5. | I21: Se designó al responsable del proyecto, cuyo nivel de autoridad y aval para usar los recursos de la organización fue establecido por el patrocinador del proyecto. | O21: 1 | P21: =+O21-1 -> 0 | Q21: 2 | R21: =+P21*W21/5 -> 0 | S21: =IF(W21=0,0,R21/W21) -> 0 | U21: =+DEFINICIÓN!$I$15*W21/5 -> 5 | W21: =+W$11/10 -> 5 | X21: =+W21/$W$9 -> 0.01
E23: 1.6. | I23: Se elaboró el plan de gerencia del proyecto, que incluye de forma integrada todos los planes secundarios. | O23: 1 | P23: =+O23-1 -> 0 | Q23: 2 | R23: =+P23*W23/5 -> 0 | S23: =IF(W23=0,0,R23/W23) -> 0 | U23: =+DEFINICIÓN!$I$15*W23/5 -> 5 | W23: =+W$11/10 -> 5 | X23: =+W23/$W$9 -> 0.01
E25: 1.7. | I25: El plan de gerencia incluye el procedimiento para dirigir y gestionar el trabajo del proyecto. | O25: 1 | P25: =+O25-1 -> 0 | Q25: 2 | R25: =+P25*W25/5 -> 0 | S25: =IF(W25=0,0,R25/W25) -> 0 | U25: =+DEFINICIÓN!$I$15*W25/5 -> 5 | W25: =+W$11/10 -> 5 | X25: =+W25/$W$9 -> 0.01
E27: 1.8. | I27: Se definió el proceso para monitorear y controlar el avance del proyecto, a fin de cumplir con los objetivos de desempeño definidos anteriormente. | O27: 1 | P27: =+O27-1 -> 0 | Q27: 2 | R27: =+P27*W27/5 -> 0 | S27: =IF(W27=0,0,R27/W27) -> 0 | U27: =+DEFINICIÓN!$I$15*W27/5 -> 5 | W27: =+W$11/10 -> 5 | X27: =+W27/$W$9 -> 0.01
E29: 1.9. | I29: Existe un procedimiento formalmente aprobado para el control de cambios durante desarrollo del proyecto. | O29: 1 | P29: =+O29-1 -> 0 | Q29: 2 | R29: =+P29*W29/5 -> 0 | S29: =IF(W29=0,0,R29/W29) -> 0 | U29: =+DEFINICIÓN!$I$15*W29/5 -> 5 | W29: =+W$11/10 -> 5 | X29: =+W29/$W$9 -> 0.01
E31: 1.10. | I31: Se cuenta con un procedimiento para el cierre del proyecto, la entrega de los productos y la documentación final del proyecto. | O31: 1 | P31: =+O31-1 -> 0 | Q31: 2 | R31: =+P31*W31/5 -> 0 | S31: =IF(W31=0,0,R31/W31) -> 0 | U31: =+DEFINICIÓN!$I$15*W31/5 -> 5 | W31: =+W$11/10 -> 5 | X31: =+W31/$W$9 -> 0.01
D33: 2. | G33: DEFINICIÓN DEL ALCANCE | R33: =+SUBTOTAL(9,R35:R65) -> 0 | S33: =IF(W33=0,0,R33/W33) -> 0 | U33: =SUBTOTAL(9,U35:U65) -> 50 | W33: =+$W$9*X33 -> 50 | X33: =+DEFINICIÓN!G17 -> 0.1
E35: 2.1. | H35: Producto | R35: =+SUBTOTAL(9,R37:R51) -> 0 | S35: =IF(W35=0,0,R35/W35) -> 0 | U35: =SUBTOTAL(9,U37:U51) -> 25 | W35: =+$W$9*X35 -> 25 | X35: =+X33/2 -> 0.05
F37: 2.1.1. | I37: Los entregables están definidos. | O37: 1 | P37: =+O37-1 -> 0 | Q37: 0.3125 | R37: =+P37*W37/5 -> 0 | S37: =IF(W37=0,0,R37/W37) -> 0 | U37: =+DEFINICIÓN!$I$17*W37/5 -> 3.125 | W37: =+$W$35/8 -> 3.125 | X37: =+W37/$W$9 -> 0.00625
F39: 2.1.2. | I39: Existe un documento formal (declaración de alcance) en el que se describe cada uno de los entregables y el trabajo necesario para desarrollar cada uno de ellos. | O39: 1 | P39: =+O39-1 -> 0 | Q39: 0.3125 | R39: =+P39*W39/5 -> 0 | S39: =IF(W39=0,0,R39/W39) -> 0 | U39: =+DEFINICIÓN!$I$17*W39/5 -> 3.125 | W39: =+$W$35/8 -> 3.125 | X39: =+W39/$W$9 -> 0.00625
F41: 2.1.3. | I41: Se realizó un levantamiento completo de los requerimientos del producto del proyecto. | O41: 1 | P41: =+O41-1 -> 0 | Q41: 0.3125 | R41: =+P41*W41/5 -> 0 | S41: =IF(W41=0,0,R41/W41) -> 0 | U41: =+DEFINICIÓN!$I$17*W41/5 -> 3.125 | W41: =+$W$35/8 -> 3.125 | X41: =+W41/$W$9 -> 0.00625
F43: 2.1.4. | I43: Se definieron los criterios de aceptación de los entregables del proyecto. | O43: 1 | P43: =+O43-1 -> 0 | Q43: 0.3125 | R43: =+P43*W43/5 -> 0 | S43: =IF(W43=0,0,R43/W43) -> 0 | U43: =+DEFINICIÓN!$I$17*W43/5 -> 3.125 | W43: =+$W$35/8 -> 3.125 | X43: =+W43/$W$9 -> 0.00625
F45: 2.1.5. | I45: Se definieron las especificaciones para los entregables del proyecto. | O45: 1 | P45: =+O45-1 -> 0 | Q45: 0.3125 | R45: =+P45*W45/5 -> 0 | S45: =IF(W45=0,0,R45/W45) -> 0 | U45: =+DEFINICIÓN!$I$17*W45/5 -> 3.125 | W45: =+$W$35/8 -> 3.125 | X45: =+W45/$W$9 -> 0.00625
F47: 2.1.6. | I47: El producto se definió en cuanto a sus características técnicas (diseño) de una manera clara y evolutiva según el desarrollo del proyecto. | O47: 1 | P47: =+O47-1 -> 0 | Q47: 0.3125 | R47: =+P47*W47/5 -> 0 | S47: =IF(W47=0,0,R47/W47) -> 0 | U47: =+DEFINICIÓN!$I$17*W47/5 -> 3.125 | W47: =+$W$35/8 -> 3.125 | X47: =+W47/$W$9 -> 0.00625
F49: 2.1.7. | I49: Se cuenta con un plan de gestión que permita realizar cambios en el producto del proyecto cuando un cambio en el alcance del proyecto lo requiera. | O49: 1 | P49: =+O49-1 -> 0 | Q49: 0.3125 | R49: =+P49*W49/5 -> 0 | S49: =IF(W49=0,0,R49/W49) -> 0 | U49: =+DEFINICIÓN!$I$17*W49/5 -> 3.125 | W49: =+$W$35/8 -> 3.125 | X49: =+W49/$W$9 -> 0.00625
F51: 2.1.8. | I51: Existe una lista de exclusiones claramente establecidas para el alcance del producto del proyecto. | O51: 1 | P51: =+O51-1 -> 0 | Q51: 0.3125 | R51: =+P51*W51/5 -> 0 | S51: =IF(W51=0,0,R51/W51) -> 0 | U51: =+DEFINICIÓN!$I$17*W51/5 -> 3.125 | W51: =+$W$35/8 -> 3.125 | X51: =+W51/$W$9 -> 0.00625
E53: 2.2. | H53: Proyecto | R53: =+SUBTOTAL(9,R55:R65) -> 0 | S53: =IF(W53=0,0,R53/W53) -> 0 | U53: =SUBTOTAL(9,U55:U65) -> 25 | W53: =+$W$9*X53 -> 25 | X53: =+X33/2 -> 0.05
F55: 2.2.1. | I55: Se elaboró el plan de gestión de alcance para el proyecto. | O55: 1 | P55: =+O55-1 -> 0 | Q55: 0.4166666667 | R55: =+P55*W55/5 -> 0 | S55: =IF(W55=0,0,R55/W55) -> 0 | U55: =+DEFINICIÓN!$I$17*W55/5 -> 4.166666667 | W55: =+$W$53/6 -> 4.166666667 | X55: =+W55/$W$9 -> 0.008333333333
F57: 2.2.2. | I57: Se estableció un procedimiento para comparar periódicamente la línea base de alcance con el desempeño real del proyecto. | O57: 1 | P57: =+O57-1 -> 0 | Q57: 0.4166666667 | R57: =+P57*W57/5 -> 0 | S57: =IF(W57=0,0,R57/W57) -> 0 | U57: =+DEFINICIÓN!$I$17*W57/5 -> 4.166666667 | W57: =+$W$53/6 -> 4.166666667 | X57: =+W57/$W$9 -> 0.008333333333
F59: 2.2.3. | I59: Se definieron supuestos y restricciones para el desarrollo del proyecto. | O59: 1 | P59: =+O59-1 -> 0 | Q59: 0.4166666667 | R59: =+P59*W59/5 -> 0 | S59: =IF(W59=0,0,R59/W59) -> 0 | U59: =+DEFINICIÓN!$I$17*W59/5 -> 4.166666667 | W59: =+$W$53/6 -> 4.166666667 | X59: =+W59/$W$9 -> 0.008333333333
F61: 2.2.4. | I61: Se definió una estructura de desglose del trabajo (WBS) para realizar todo el trabajo definido en el alcance del proyecto. | O61: 1 | P61: =+O61-1 -> 0 | Q61: 0.4166666667 | R61: =+P61*W61/5 -> 0 | S61: =IF(W61=0,0,R61/W61) -> 0 | U61: =+DEFINICIÓN!$I$17*W61/5 -> 4.166666667 | W61: =+$W$53/6 -> 4.166666667 | X61: =+W61/$W$9 -> 0.008333333333
F63: 2.2.5. | I63: Se elaboró el diccionario de la WBS. | O63: 1 | P63: =+O63-1 -> 0 | Q63: 0.4166666667 | R63: =+P63*W63/5 -> 0 | S63: =IF(W63=0,0,R63/W63) -> 0 | U63: =+DEFINICIÓN!$I$17*W63/5 -> 4.166666667 | W63: =+$W$53/6 -> 4.166666667 | X63: =+W63/$W$9 -> 0.008333333333
F65: 2.2.6. | I65: Se definieron los recursos necesarios para la gestión de alcance del proyecto. | O65: 1 | P65: =+O65-1 -> 0 | Q65: 0.4166666667 | R65: =+P65*W65/5 -> 0 | S65: =IF(W65=0,0,R65/W65) -> 0 | U65: =+DEFINICIÓN!$I$17*W65/5 -> 4.166666667 | W65: =+$W$53/6 -> 4.166666667 | X65: =+W65/$W$9 -> 0.008333333333
D67: 3. | G67: DEFINICIÓN DEL TIEMPO | R67: =+SUBTOTAL(9,R69:R110) -> 0 | S67: =IF(W67=0,0,R67/W67) -> 0 | U67: =SUBTOTAL(9,U69:U110) -> 50 | W67: =+$W$9*X67 -> 50 | X67: =+DEFINICIÓN!G19 -> 0.1
E69: 3.1. | I69: Se elaboró el plan de gestión del cronograma para el proyecto. | O69: 1 | P69: =+O69-1 -> 0 | Q69: 1.666666667 | R69: =+P69*W69/5 -> 0 | S69: =IF(W69=0,0,R69/W69) -> 0 | U69: =+DEFINICIÓN!$I$19*W69/5 -> 4.166666667 | W69: =+$W$67/12 -> 4.166666667 | X69: =+W69/$W$9 -> 0.008333333333
E71: 3.2. | I71: Se elaboró el cronograma detallado del proyecto. | O71: 1 | P71: =+O71-1 -> 0 | Q71: 1.666666667 | R71: =+P71*W71/5 -> 0 | S71: =IF(W71=0,0,R71/W71) -> 0 | U71: =+DEFINICIÓN!$I$19*W71/5 -> 4.166666667 | W71: =+$W$67/12 -> 4.166666667 | X71: =+W71/$W$9 -> 0.008333333333
E73: 3.3. | I73: Se definió de forma específica cada una de las actividades necesarias para el desarrollo del proyecto. | O73: 1 | P73: =+O73-1 -> 0 | Q73: 1.666666667 | R73: =+P73*W73/5 -> 0 | S73: =IF(W73=0,0,R73/W73) -> 0 | U73: =+DEFINICIÓN!$I$19*W73/5 -> 4.166666667 | W73: =+$W$67/12 -> 4.166666667 | X73: =+W73/$W$9 -> 0.008333333333
E75: 3.4. | I75: Se establecieron los siguientes atributos para las actividades propuestas. | R75: =+SUBTOTAL(9,R78:R96) -> 0 | S75: =IF(W75=0,0,R75/W75) -> 0 | U75: =+DEFINICIÓN!$I$19*W75/5 -> 8.333333333 | W75: =+W73*2 -> 8.333333333 | X75: =+W75/$W$9 -> 0.01666666667
I78: • | J78: Codificación | O78: 2 | P78: =+IF(O78=1,1,0) -> 0 | Q78: 1.666666667 | R78: =IF(O78=1,O78*W78,0) -> 0 | W78: =+$W$75/10 -> 0.8333333333 | X78: =+W78/$W$9 -> 0.001666666667
I80: • | J80: Fecha de inicio | O80: 2 | P80: =+IF(O80=1,1,0) -> 0 | Q80: 1.666666667 | R80: =IF(O80=1,O80*W80,0) -> 0 | W80: =+$W$75/10 -> 0.8333333333 | X80: =+W80/$W$9 -> 0.001666666667
I82: • | J82: Fecha de terminación | O82: 2 | P82: =+IF(O82=1,1,0) -> 0 | Q82: 1.666666667 | R82: =IF(O82=1,O82*W82,0) -> 0 | W82: =+$W$75/10 -> 0.8333333333 | X82: =+W82/$W$9 -> 0.001666666667
I84: • | J84: Peso (Importancia) | O84: 2 | P84: =+IF(O84=1,1,0) -> 0 | Q84: 1.666666667 | R84: =IF(O84=1,O84*W84,0) -> 0 | W84: =+$W$75/10 -> 0.8333333333 | X84: =+W84/$W$9 -> 0.001666666667
I86: • | J86: Predecesoras | O86: 2 | P86: =+IF(O86=1,1,0) -> 0 | Q86: 1.666666667 | R86: =IF(O86=1,O86*W86,0) -> 0 | W86: =+$W$75/10 -> 0.8333333333 | X86: =+W86/$W$9 -> 0.001666666667
I88: • | J88: Sucesoras | O88: 2 | P88: =+IF(O88=1,1,0) -> 0 | Q88: 1.666666667 | R88: =IF(O88=1,O88*W88,0) -> 0 | W88: =+$W$75/10 -> 0.8333333333 | X88: =+W88/$W$9 -> 0.001666666667
I90: • | J90: Recursos | O90: 2 | P90: =+IF(O90=1,1,0) -> 0 | Q90: 1.666666667 | R90: =IF(O90=1,O90*W90,0) -> 0 | W90: =+$W$75/10 -> 0.8333333333 | X90: =+W90/$W$9 -> 0.001666666667
I92: • | J92: Inicio temprano | O92: 2 | P92: =+IF(O92=1,1,0) -> 0 | Q92: 1.666666667 | R92: =IF(O92=1,O92*W92,0) -> 0 | W92: =+$W$75/10 -> 0.8333333333 | X92: =+W92/$W$9 -> 0.001666666667
I94: • | J94: Inicio tardío | O94: 2 | P94: =+IF(O94=1,1,0) -> 0 | Q94: 1.666666667 | R94: =IF(O94=1,O94*W94,0) -> 0 | W94: =+$W$75/10 -> 0.8333333333 | X94: =+W94/$W$9 -> 0.001666666667
I96: • | J96: Responsable | O96: 2 | P96: =+IF(O96=1,1,0) -> 0 | Q96: 1.666666667 | R96: =IF(O96=1,O96*W96,0) -> 0 | W96: =+$W$75/10 -> 0.8333333333 | X96: =+W96/$W$9 -> 0.001666666667
E98: 3.5. | I98: Se realizó un diagrama de red para definir la secuenciación de las actividades. | O98: 1 | P98: =+O98-1 -> 0 | Q98: 1.666666667 | R98: =+P98*W98/5 -> 0 | S98: =IF(W98=0,0,R98/W98) -> 0 | U98: =+DEFINICIÓN!$I$19*W98/5 -> 4.166666667 | W98: =+$W$67/12 -> 4.166666667 | X98: =+W98/$W$9 -> 0.008333333333
E100: 3.6. | I100: Se identificó y analizó la ruta critica del proyecto | O100: 1 | P100: =+O100-1 -> 0 | Q100: 1.666666667 | R100: =+P100*W100/5 -> 0 | S100: =IF(W100=0,0,R100/W100) -> 0 | U100: =+DEFINICIÓN!$I$19*W100/5 -> 4.166666667 | W100: =+$W$67/12 -> 4.166666667 | X100: =+W100/$W$9 -> 0.008333333333
E102: 3.7. | I102: Se establecieron los hitos del proyecto (puntos de control de la terminación de actividades importantes) | O102: 1 | P102: =+O102-1 -> 0 | Q102: 1.666666667 | R102: =+P102*W102/5 -> 0 | S102: =IF(W102=0,0,R102/W102) -> 0 | U102: =+DEFINICIÓN!$I$19*W102/5 -> 4.166666667 | W102: =+$W$67/12 -> 4.166666667 | X102: =+W102/$W$9 -> 0.008333333333
E104: 3.8. | I104: Se estimaron los recursos necesarios para llevar a cabo cada actividad del proyecto. | O104: 1 | P104: =+O104-1 -> 0 | Q104: 1.666666667 | R104: =+P104*W104/5 -> 0 | S104: =IF(W104=0,0,R104/W104) -> 0 | U104: =+DEFINICIÓN!$I$19*W104/5 -> 4.166666667 | W104: =+$W$67/12 -> 4.166666667 | X104: =+W104/$W$9 -> 0.008333333333
E106: 3.9. | I106: Se estimó la duración de cada una de las actividades del proyecto. | O106: 1 | P106: =+O106-1 -> 0 | Q106: 1.666666667 | R106: =+P106*W106/5 -> 0 | S106: =IF(W106=0,0,R106/W106) -> 0 | U106: =+DEFINICIÓN!$I$19*W106/5 -> 4.166666667 | W106: =+$W$67/12 -> 4.166666667 | X106: =+W106/$W$9 -> 0.008333333333
E108: 3.10. | I108: Se definió la línea base del cronograma que permite hacer seguimiento y control al proyecto. | O108: 1 | P108: =+O108-1 -> 0 | Q108: 1.666666667 | R108: =+P108*W108/5 -> 0 | S108: =IF(W108=0,0,R108/W108) -> 0 | U108: =+DEFINICIÓN!$I$19*W108/5 -> 4.166666667 | W108: =+$W$67/12 -> 4.166666667 | X108: =+W108/$W$9 -> 0.008333333333
E110: 3.11. | I110: Se definieron los recursos necesarios para la gestión del cronograma del proyecto. | O110: 1 | P110: =+O110-1 -> 0 | Q110: 1.666666667 | R110: =+P110*W110/5 -> 0 | S110: =IF(W110=0,0,R110/W110) -> 0 | U110: =+DEFINICIÓN!$I$19*W110/5 -> 4.166666667 | W110: =+$W$67/12 -> 4.166666667 | X110: =+W110/$W$9 -> 0.008333333333
D112: 4. | G112: DEFINICIÓN DE LOS COSTOS | R112: =+SUBTOTAL(9,R114:R136) -> 0 | S112: =IF(W112=0,0,R112/W112) -> 0 | U112: =SUBTOTAL(9,U114:U136) -> 50 | W112: =+$W$9*X112 -> 50 | X112: =+DEFINICIÓN!G21 -> 0.1
E114: 4.1. | I114: Se definió el plan de gestión de costos del proyecto. | O114: 1 | P114: =+O114-1 -> 0 | Q114: 0 | R114: =+P114*W114/5 -> 0 | S114: =IF(W114=0,0,R114/W114) -> 0 | U114: =+DEFINICIÓN!$I$21*W114/5 -> 4.166666667 | W114: =+$W$112/12 -> 4.166666667 | X114: =+W114/$W$9 -> 0.008333333333
E116: 4.2. | I116: Se estimaron los recursos necesarios para la realización de las actividades | O116: 1 | P116: =+O116-1 -> 0 | Q116: 0 | R116: =+P116*W116/5 -> 0 | S116: =IF(W116=0,0,R116/W116) -> 0 | U116: =+DEFINICIÓN!$I$21*W116/5 -> 4.166666667 | W116: =+$W$112/12 -> 4.166666667 | X116: =+W116/$W$9 -> 0.008333333333
E118: 4.3. | I118: Las estimaciones de costos se realizaron con el nivel de exactitud y precisión definido por la organización. | O118: 1 | P118: =+O118-1 -> 0 | Q118: 0 | R118: =+P118*W118/5 -> 0 | S118: =IF(W118=0,0,R118/W118) -> 0 | U118: =+DEFINICIÓN!$I$21*W118/5 -> 4.166666667 | W118: =+$W$112/12 -> 4.166666667 | X118: =+W118/$W$9 -> 0.008333333333
E120: 4.4. | I120: Se cuenta en la compañía con una base documental de referencia para la estimación de costos. | O120: 1 | P120: =+O120-1 -> 0 | Q120: 0 | R120: =+P120*W120/5 -> 0 | S120: =IF(W120=0,0,R120/W120) -> 0 | U120: =+DEFINICIÓN!$I$21*W120/5 -> 4.166666667 | W120: =+$W$112/12 -> 4.166666667 | X120: =+W120/$W$9 -> 0.008333333333
E122: 4.5. | I122: Se definieron los procedimientos para la medición del desempeño de los costos.. | O122: 1 | P122: =+O122-1 -> 0 | Q122: 0 | R122: =+P122*W122/5 -> 0 | S122: =IF(W122=0,0,R122/W122) -> 0 | U122: =+DEFINICIÓN!$I$21*W122/5 -> 4.166666667 | W122: =+$W$112/12 -> 4.166666667 | X122: =+W122/$W$9 -> 0.008333333333
E124: 4.6. | I124: Se elaboraron los formatos de los informes de gestión de costos del proyecto | O124: 1 | P124: =+O124-1 -> 0 | Q124: 0 | R124: =+P124*W124/5 -> 0 | S124: =IF(W124=0,0,R124/W124) -> 0 | U124: =+DEFINICIÓN!$I$21*W124/5 -> 4.166666667 | W124: =+$W$112/12 -> 4.166666667 | X124: =+W124/$W$9 -> 0.008333333333
E126: 4.7. | I126: El plan de gestión de costos incluye el procedimiento para el registro de los costos del proyecto. | O126: 1 | P126: =+O126-1 -> 0 | Q126: 0 | R126: =+P126*W126/5 -> 0 | S126: =IF(W126=0,0,R126/W126) -> 0 | U126: =+DEFINICIÓN!$I$21*W126/5 -> 4.166666667 | W126: =+$W$112/12 -> 4.166666667 | X126: =+W126/$W$9 -> 0.008333333333
E128: 4.8. | I128: Se cuenta con un presupuesto para el proyecto definido por actividades y enlazado al cronograma. | O128: 1 | P128: =+O128-1 -> 0 | Q128: 0 | R128: =+P128*W128/5 -> 0 | S128: =IF(W128=0,0,R128/W128) -> 0 | U128: =+DEFINICIÓN!$I$21*W128/5 -> 4.166666667 | W128: =+$W$112/12 -> 4.166666667 | X128: =+W128/$W$9 -> 0.008333333333
E130: 4.9. | I130: Dentro del presupuesto estimado para el proyecto se cuenta con una reserva de gerencia establecida con aprobación del sponsor del proyecto. | O130: 1 | P130: =+O130-1 -> 0 | Q130: 0 | R130: =+P130*W130/5 -> 0 | S130: =IF(W130=0,0,R130/W130) -> 0 | U130: =+DEFINICIÓN!$I$21*W130/5 -> 4.166666667 | W130: =+$W$112/12 -> 4.166666667 | X130: =+W130/$W$9 -> 0.008333333333
E132: 4.10. | I132: Dentro del presupuesto estimado para el proyecto se cuenta con una reserva de contingencia establecida con aprobación del sponsor del proyecto para gestionar la ocurrencia de riesgos. | O132: 1 | P132: =+O132-1 -> 0 | Q132: 0 | R132: =+P132*W132/5 -> 0 | S132: =IF(W132=0,0,R132/W132) -> 0 | U132: =+DEFINICIÓN!$I$21*W132/5 -> 4.166666667 | W132: =+$W$112/12 -> 4.166666667 | X132: =+W132/$W$9 -> 0.008333333333
E134: 4.11. | I134: Se estableció el uso de métricas de Valor ganado (Earned Value) para la gestión de los costos con una periodicidad claramente definida. | O134: 1 | P134: =+O134-1 -> 0 | Q134: 0 | R134: =+P134*W134/5 -> 0 | S134: =IF(W134=0,0,R134/W134) -> 0 | U134: =+DEFINICIÓN!$I$21*W134/5 -> 4.166666667 | W134: =+$W$112/12 -> 4.166666667 | X134: =+W134/$W$9 -> 0.008333333333
E136: 4.12. | I136: Se definieron los recursos necesarios para la gestión de costos del proyecto. | O136: 1 | P136: =+O136-1 -> 0 | Q136: 0 | R136: =+P136*W136/5 -> 0 | S136: =IF(W136=0,0,R136/W136) -> 0 | U136: =+DEFINICIÓN!$I$21*W136/5 -> 4.166666667 | W136: =+$W$112/12 -> 4.166666667 | X136: =+W136/$W$9 -> 0.008333333333
D138: 5. | G138: DEFINICIÓN DE CALIDAD | R138: =+SUBTOTAL(9,R140:R158) -> 0 | S138: =IF(W138=0,0,R138/W138) -> 0 | U138: =SUBTOTAL(9,U140:U158) -> 50 | W138: =+$W$9*X138 -> 50 | X138: =+DEFINICIÓN!G23 -> 0.1
E140: 5.1. | I140: Se identificaron los requisitos y/o estándares de calidad para el proyecto y sus entregables. | O140: 1 | P140: =+O140-1 -> 0 | Q140: 1.5 | R140: =+P140*W140/5 -> 0 | S140: =IF(W140=0,0,R140/W140) -> 0 | U140: =+DEFINICIÓN!$I$23*W140/5 -> 5 | W140: =+$W$138/10 -> 5 | X140: =+W140/$W$9 -> 0.01
E142: 5.2. | I142: Se elaboró el plan de gestión de calidad del proyecto para los procesos de dirección del proyecto y el producto. | O142: 1 | P142: =+O142-1 -> 0 | Q142: 1.5 | R142: =+P142*W142/5 -> 0 | S142: =IF(W142=0,0,R142/W142) -> 0 | U142: =+DEFINICIÓN!$I$23*W142/5 -> 5 | W142: =+$W$138/10 -> 5 | X142: =+W142/$W$9 -> 0.01
E144: 5.3. | I144: El plan de gestión de calidad incluye los procedimientos para asegurar la calidad del proyecto. | O144: 1 | P144: =+O144-1 -> 0 | Q144: 1.5 | R144: =+P144*W144/5 -> 0 | S144: =IF(W144=0,0,R144/W144) -> 0 | U144: =+DEFINICIÓN!$I$23*W144/5 -> 5 | W144: =+$W$138/10 -> 5 | X144: =+W144/$W$9 -> 0.01
E146: 5.4. | I146: El plan de gestión de calidad incluye los procedimientos para controlar la calidad del proyecto. | O146: 1 | P146: =+O146-1 -> 0 | Q146: 1.5 | R146: =+P146*W146/5 -> 0 | S146: =IF(W146=0,0,R146/W146) -> 0 | U146: =+DEFINICIÓN!$I$23*W146/5 -> 5 | W146: =+$W$138/10 -> 5 | X146: =+W146/$W$9 -> 0.01
E148: 5.5. | I148: Se definieron las herramientas de gestión y control de calidad a utilizar en el proyecto. | O148: 1 | P148: =+O148-1 -> 0 | Q148: 1.5 | R148: =+P148*W148/5 -> 0 | S148: =IF(W148=0,0,R148/W148) -> 0 | U148: =+DEFINICIÓN!$I$23*W148/5 -> 5 | W148: =+$W$138/10 -> 5 | X148: =+W148/$W$9 -> 0.01
E150: 5.6. | I150: Se definió el propósito y la frecuencia de aplicación de auditorias internas de calidad. | O150: 1 | P150: =+O150-1 -> 0 | Q150: 1.5 | R150: =+P150*W150/5 -> 0 | S150: =IF(W150=0,0,R150/W150) -> 0 | U150: =+DEFINICIÓN!$I$23*W150/5 -> 5 | W150: =+$W$138/10 -> 5 | X150: =+W150/$W$9 -> 0.01
E152: 5.7. | I152: Se estableció el plan de mejoras del proceso, el cual incluye los pasos para analizar los procesos e identificar las actividades que generan valor para el proyecto. | O152: 1 | P152: =+O152-1 -> 0 | Q152: 1.5 | R152: =+P152*W152/5 -> 0 | S152: =IF(W152=0,0,R152/W152) -> 0 | U152: =+DEFINICIÓN!$I$23*W152/5 -> 5 | W152: =+$W$138/10 -> 5 | X152: =+W152/$W$9 -> 0.01
E154: 5.8. | I154: Se definieron las métricas de calidad a ser utilizadas en el proyecto. | O154: 1 | P154: =+O154-1 -> 0 | Q154: 1.5 | R154: =+P154*W154/5 -> 0 | S154: =IF(W154=0,0,R154/W154) -> 0 | U154: =+DEFINICIÓN!$I$23*W154/5 -> 5 | W154: =+$W$138/10 -> 5 | X154: =+W154/$W$9 -> 0.01
E156: 5.9. | I156: Se definieron las listas de verificación ( o listas de control de calidad) que incorporan los criterios de aceptación incluidos en la línea base de alcance. | O156: 1 | P156: =+O156-1 -> 0 | Q156: 1.5 | R156: =+P156*W156/5 -> 0 | S156: =IF(W156=0,0,R156/W156) -> 0 | U156: =+DEFINICIÓN!$I$23*W156/5 -> 5 | W156: =+$W$138/10 -> 5 | X156: =+W156/$W$9 -> 0.01
E158: 5.10. | I158: Se definieron los recursos necesarios para gestionar la calidad del proyecto. | O158: 1 | P158: =+O158-1 -> 0 | Q158: 1.5 | R158: =+P158*W158/5 -> 0 | S158: =IF(W158=0,0,R158/W158) -> 0 | U158: =+DEFINICIÓN!$I$23*W158/5 -> 5 | W158: =+$W$138/10 -> 5 | X158: =+W158/$W$9 -> 0.01
D160: 6. | G160: DEFINICIÓN DE RIESGOS | R160: =+SUBTOTAL(9,R162:R178) -> 0 | S160: =IF(W160=0,0,R160/W160) -> 0 | U160: =SUBTOTAL(9,U162:U178) -> 50 | W160: =+$W$9*X160 -> 50 | X160: =+DEFINICIÓN!G25 -> 0.1
E162: 6.1. | I162: Se realizó un proceso de identificación de riesgos para el desarrollo del proyecto. | O162: 1 | P162: =+O162-1 -> 0 | Q162: 1.666666667 | R162: =+P162*W162/5 -> 0 | S162: =IF(W162=0,0,R162/W162) -> 0 | U162: =+DEFINICIÓN!$I$25*W162/5 -> 5.555555556 | W162: =+$W$160/9 -> 5.555555556 | X162: =+W162/$W$9 -> 0.01111111111
E164: 6.2. | I164: Se realizó un proceso de medición de impacto y probabilidad de los riesgos identificados, de forma cualitativa o cuantitativa según la complejidad del proyecto lo amerite. | O164: 1 | P164: =+O164-1 -> 0 | Q164: 1.666666667 | R164: =+P164*W164/5 -> 0 | S164: =IF(W164=0,0,R164/W164) -> 0 | U164: =+DEFINICIÓN!$I$25*W164/5 -> 5.555555556 | W164: =+$W$160/9 -> 5.555555556 | X164: =+W164/$W$9 -> 0.01111111111
E166: 6.3. | I166: Se plantearon estrategias y acciones claras para responder ante la ocurrencia de un riesgo identificado. | O166: 1 | P166: =+O166-1 -> 0 | Q166: 1.666666667 | R166: =+P166*W166/5 -> 0 | S166: =IF(W166=0,0,R166/W166) -> 0 | U166: =+DEFINICIÓN!$I$25*W166/5 -> 5.555555556 | W166: =+$W$160/9 -> 5.555555556 | X166: =+W166/$W$9 -> 0.01111111111
E168: 6.4. | I168: Se tiene una estrategia de respuesta ante riesgos desconocidos (imprevistos), como la constitución de una reserva de contingencias. | O168: 1 | P168: =+O168-1 -> 0 | Q168: 1.666666667 | R168: =+P168*W168/5 -> 0 | S168: =IF(W168=0,0,R168/W168) -> 0 | U168: =+DEFINICIÓN!$I$25*W168/5 -> 5.555555556 | W168: =+$W$160/9 -> 5.555555556 | X168: =+W168/$W$9 -> 0.01111111111
E170: 6.5. | I170: Se definió un plan de gestión de los riesgos formal para el proyecto que incluye los aspectos arriba definidos. | O170: 1 | P170: =+O170-1 -> 0 | Q170: 1.666666667 | R170: =+P170*W170/5 -> 0 | S170: =IF(W170=0,0,R170/W170) -> 0 | U170: =+DEFINICIÓN!$I$25*W170/5 -> 5.555555556 | W170: =+$W$160/9 -> 5.555555556 | X170: =+W170/$W$9 -> 0.01111111111
E172: 6.6. | I172: Los niveles de tolerancia al riesgo del proyecto se establecieron mediante información proveniente de los stakeholders afectados ante la ocurrencia de los riesgos definidos. | O172: 1 | P172: =+O172-1 -> 0 | Q172: 1.666666667 | R172: =+P172*W172/5 -> 0 | S172: =IF(W172=0,0,R172/W172) -> 0 | U172: =+DEFINICIÓN!$I$25*W172/5 -> 5.555555556 | W172: =+$W$160/9 -> 5.555555556 | X172: =+W172/$W$9 -> 0.01111111111
E174: 6.7. | I174: Se realizó una estructura de desglose del riesgo definiendo en detalle la exposición del proyecto a cada uno de los riesgos y las fuentes de los mismos. | O174: 1 | P174: =+O174-1 -> 0 | Q174: 1.666666667 | R174: =+P174*W174/5 -> 0 | S174: =IF(W174=0,0,R174/W174) -> 0 | U174: =+DEFINICIÓN!$I$25*W174/5 -> 5.555555556 | W174: =+$W$160/9 -> 5.555555556 | X174: =+W174/$W$9 -> 0.01111111111
E176: 6.8. | I176: Se incluyeron en las líneas base de costos y tiempo las acciones de mitigación de los riesgos identificadas. | O176: 1 | P176: =+O176-1 -> 0 | Q176: 1.666666667 | R176: =+P176*W176/5 -> 0 | S176: =IF(W176=0,0,R176/W176) -> 0 | U176: =+DEFINICIÓN!$I$25*W176/5 -> 5.555555556 | W176: =+$W$160/9 -> 5.555555556 | X176: =+W176/$W$9 -> 0.01111111111
E178: 6.9. | I178: Se constituyó una reserva de contingencia dentro del presupuesto del proyecto para la gestión de los riesgos y un procedimiento para la gestión de dicha reserva. | O178: 1 | P178: =+O178-1 -> 0 | Q178: 1.666666667 | R178: =+P178*W178/5 -> 0 | S178: =IF(W178=0,0,R178/W178) -> 0 | U178: =+DEFINICIÓN!$I$25*W178/5 -> 5.555555556 | W178: =+$W$160/9 -> 5.555555556 | X178: =+W178/$W$9 -> 0.01111111111
D180: 7. | G180: DEFINICIÓN DE STAKEHOLDERS | R180: =+SUBTOTAL(9,R182:R196) -> 0 | S180: =IF(W180=0,0,R180/W180) -> 0 | U180: =SUBTOTAL(9,U182:U196) -> 50 | W180: =+$W$9*X180 -> 50 | X180: =+DEFINICIÓN!G27 -> 0.1
E182: 7.1. | I182: Se llevó a cabo la identificación de los interesados del proyecto, que incluye sus expectativas y requerimientos del proyecto. | O182: 1 | P182: =+O182-1 -> 0 | Q182: 0.625 | R182: =+P182*W182/5 -> 0 | S182: =IF(W182=0,0,R182/W182) -> 0 | U182: =+DEFINICIÓN!$I$27*W182/5 -> 6.25 | W182: =+$W$180/8 -> 6.25 | X182: =+W182/$W$9 -> 0.0125
E184: 7.2. | I184: Se realizó el plan de gestión de stakeholders del proyecto. | O184: 1 | P184: =+O184-1 -> 0 | Q184: 0.625 | R184: =+P184*W184/5 -> 0 | S184: =IF(W184=0,0,R184/W184) -> 0 | U184: =+DEFINICIÓN!$I$27*W184/5 -> 6.25 | W184: =+$W$180/8 -> 6.25 | X184: =+W184/$W$9 -> 0.0125
E186: 7.3. | I186: Se definieron los niveles de participación actual y deseado de los interesados clave. | O186: 1 | P186: =+O186-1 -> 0 | Q186: 0.625 | R186: =+P186*W186/5 -> 0 | S186: =IF(W186=0,0,R186/W186) -> 0 | U186: =+DEFINICIÓN!$I$27*W186/5 -> 6.25 | W186: =+$W$180/8 -> 6.25 | X186: =+W186/$W$9 -> 0.0125
E188: 7.4. | I188: Se definió el alcance e impacto del cambio para los interesados. | O188: 1 | P188: =+O188-1 -> 0 | Q188: 0.625 | R188: =+P188*W188/5 -> 0 | S188: =IF(W188=0,0,R188/W188) -> 0 | U188: =+DEFINICIÓN!$I$27*W188/5 -> 6.25 | W188: =+$W$180/8 -> 6.25 | X188: =+W188/$W$9 -> 0.0125
E190: 7.5. | I190: Se definieron las interrelaciones y posible superposición entre interesados que se hayan identificado. | O190: 1 | P190: =+O190-1 -> 0 | Q190: 0.625 | R190: =+P190*W190/5 -> 0 | S190: =IF(W190=0,0,R190/W190) -> 0 | U190: =+DEFINICIÓN!$I$27*W190/5 -> 6.25 | W190: =+$W$180/8 -> 6.25 | X190: =+W190/$W$9 -> 0.0125
E192: 7.6. | I192: Se definió el impacto esperado en la participación de los interesados de acuerdo al plan de comunicaciones. | O192: 1 | P192: =+O192-1 -> 0 | Q192: 0.625 | R192: =+P192*W192/5 -> 0 | S192: =IF(W192=0,0,R192/W192) -> 0 | U192: =+DEFINICIÓN!$I$27*W192/5 -> 6.25 | W192: =+$W$180/8 -> 6.25 | X192: =+W192/$W$9 -> 0.0125
E194: 7.7. | I194: Se definió el método para actualizar y refinar el plan de gestión de los interesados. | O194: 1 | P194: =+O194-1 -> 0 | Q194: 0.625 | R194: =+P194*W194/5 -> 0 | S194: =IF(W194=0,0,R194/W194) -> 0 | U194: =+DEFINICIÓN!$I$27*W194/5 -> 6.25 | W194: =+$W$180/8 -> 6.25 | X194: =+W194/$W$9 -> 0.0125
E196: 7.8. | I196: Se definieron los recursos necesarios para la gestión de interesados del proyecto. | O196: 1 | P196: =+O196-1 -> 0 | Q196: 0.625 | R196: =+P196*W196/5 -> 0 | S196: =IF(W196=0,0,R196/W196) -> 0 | U196: =+DEFINICIÓN!$I$27*W196/5 -> 6.25 | W196: =+$W$180/8 -> 6.25 | X196: =+W196/$W$9 -> 0.0125
D198: 8. | G198: DEFINICIÓN DE COMUNICACIONES | R198: =+SUBTOTAL(9,R200:R224) -> 0 | S198: =IF(W198=0,0,R198/W198) -> 0 | U198: =SUBTOTAL(9,U200:U224) -> 50 | W198: =+$W$9*X198 -> 50 | X198: =+DEFINICIÓN!G29 -> 0.1
E200: 8.1. | I200: Se definió el plan de gestión de las comunicaciones. | O200: 1 | P200: =+O200-1 -> 0 | Q200: 0.3846153846 | R200: =+P200*W200/5 -> 0 | S200: =IF(W200=0,0,R200/W200) -> 0 | U200: =+DEFINICIÓN!$I$29*W200/5 -> 3.846153846 | W200: =+$W$198/13 -> 3.846153846 | X200: =+W200/$W$9 -> 0.007692307692
E202: 8.2. | I202: Se realizó la identificación de requerimientos de comunicación entre los diferentes stakeholders del proyecto. | O202: 1 | P202: =+O202-1 -> 0 | Q202: 0.3846153846 | R202: =+P202*W202/5 -> 0 | S202: =IF(W202=0,0,R202/W202) -> 0 | U202: =+DEFINICIÓN!$I$29*W202/5 -> 3.846153846 | W202: =+$W$198/13 -> 3.846153846 | X202: =+W202/$W$9 -> 0.007692307692
E204: 8.3. | I204: Se definió la información que debe ser comunicada a cada stakeholder. | O204: 1 | P204: =+O204-1 -> 0 | Q204: 0.3846153846 | R204: =+P204*W204/5 -> 0 | S204: =IF(W204=0,0,R204/W204) -> 0 | U204: =+DEFINICIÓN!$I$29*W204/5 -> 3.846153846 | W204: =+$W$198/13 -> 3.846153846 | X204: =+W204/$W$9 -> 0.007692307692
E206: 8.4. | I206: Se definió el plazo y la frecuencia para la distribución de la información requerida y para la recepción de la respuesta correspondiente. | O206: 1 | P206: =+O206-1 -> 0 | Q206: 0.3846153846 | R206: =+P206*W206/5 -> 0 | S206: =IF(W206=0,0,R206/W206) -> 0 | U206: =+DEFINICIÓN!$I$29*W206/5 -> 3.846153846 | W206: =+$W$198/13 -> 3.846153846 | X206: =+W206/$W$9 -> 0.007692307692
E208: 8.5. | I208: Se definieron los responsables de comunicar la información. | O208: 1 | P208: =+O208-1 -> 0 | Q208: 0.3846153846 | R208: =+P208*W208/5 -> 0 | S208: =IF(W208=0,0,R208/W208) -> 0 | U208: =+DEFINICIÓN!$I$29*W208/5 -> 3.846153846 | W208: =+$W$198/13 -> 3.846153846 | X208: =+W208/$W$9 -> 0.007692307692
E210: 8.6. | I210: Se definió la persona responsable de autorizar la divulgación de información confidencial. | O210: 1 | P210: =+O210-1 -> 0 | Q210: 0.3846153846 | R210: =+P210*W210/5 -> 0 | S210: =IF(W210=0,0,R210/W210) -> 0 | U210: =+DEFINICIÓN!$I$29*W210/5 -> 3.846153846 | W210: =+$W$198/13 -> 3.846153846 | X210: =+W210/$W$9 -> 0.007692307692
E212: 8.7. | I212: Se definieron las personas o grupos que recibirán la información. | O212: 1 | P212: =+O212-1 -> 0 | Q212: 0.3846153846 | R212: =+P212*W212/5 -> 0 | S212: =IF(W212=0,0,R212/W212) -> 0 | U212: =+DEFINICIÓN!$I$29*W212/5 -> 3.846153846 | W212: =+$W$198/13 -> 3.846153846 | X212: =+W212/$W$9 -> 0.007692307692
E214: 8.8. | I214: Se definieron los métodos o tecnologías utilizados para transmitir la información. | O214: 1 | P214: =+O214-1 -> 0 | Q214: 0.3846153846 | R214: =+P214*W214/5 -> 0 | S214: =IF(W214=0,0,R214/W214) -> 0 | U214: =+DEFINICIÓN!$I$29*W214/5 -> 3.846153846 | W214: =+$W$198/13 -> 3.846153846 | X214: =+W214/$W$9 -> 0.007692307692
E216: 8.9. | I216: Se definieron los recursos necesarios para la gestión de comunicaciones del proyecto. | O216: 1 | P216: =+O216-1 -> 0 | Q216: 0.3846153846 | R216: =+P216*W216/5 -> 0 | S216: =IF(W216=0,0,R216/W216) -> 0 | U216: =+DEFINICIÓN!$I$29*W216/5 -> 3.846153846 | W216: =+$W$198/13 -> 3.846153846 | X216: =+W216/$W$9 -> 0.007692307692
E218: 8.10. | I218: Se definió el método para actualizar y refinar el plan de gestión de las comunicaciones. | O218: 1 | P218: =+O218-1 -> 0 | Q218: 0.3846153846 | R218: =+P218*W218/5 -> 0 | S218: =IF(W218=0,0,R218/W218) -> 0 | U218: =+DEFINICIÓN!$I$29*W218/5 -> 3.846153846 | W218: =+$W$198/13 -> 3.846153846 | X218: =+W218/$W$9 -> 0.007692307692
E220: 8.11. | I220: Se elaboraron diagramas de flujo de la información que circula dentro del proyecto y los flujos de trabajo con la posible secuencia de autorizaciones. | O220: 1 | P220: =+O220-1 -> 0 | Q220: 0.3846153846 | R220: =+P220*W220/5 -> 0 | S220: =IF(W220=0,0,R220/W220) -> 0 | U220: =+DEFINICIÓN!$I$29*W220/5 -> 3.846153846 | W220: =+$W$198/13 -> 3.846153846 | X220: =+W220/$W$9 -> 0.007692307692
E222: 8.12. | I222: Se definieron las restricciones de comunicación del proyecto. | O222: 1 | P222: =+O222-1 -> 0 | Q222: 0.3846153846 | R222: =+P222*W222/5 -> 0 | S222: =IF(W222=0,0,R222/W222) -> 0 | U222: =+DEFINICIÓN!$I$29*W222/5 -> 3.846153846 | W222: =+$W$198/13 -> 3.846153846 | X222: =+W222/$W$9 -> 0.007692307692
E224: 8.13. | I224: Se elaboraron las plantillas para las reuniones y los mensajes de correo electrónico. | O224: 1 | P224: =+O224-1 -> 0 | Q224: 0.3846153846 | R224: =+P224*W224/5 -> 0 | S224: =IF(W224=0,0,R224/W224) -> 0 | U224: =+DEFINICIÓN!$I$29*W224/5 -> 3.846153846 | W224: =+$W$198/13 -> 3.846153846 | X224: =+W224/$W$9 -> 0.007692307692
D226: 9. | G226: DEFINICIÓN DE ADQUISICIONES | R226: =+SUBTOTAL(9,R228:R250) -> 0 | S226: =IF(W226=0,0,R226/W226) -> 0 | U226: =SUBTOTAL(9,U228:U250) -> 50 | W226: =+$W$9*X226 -> 50 | X226: =+DEFINICIÓN!G31 -> 0.1
E228: 9.1. | I228: Se identificaron las necesidades del proyecto que pueden ser suplidas mediante la adquisición de bienes o servicios. | O228: 1 | P228: =+O228-1 -> 0 | Q228: 0.4166666667 | R228: =+P228*W228/5 -> 0 | S228: =IF(W228=0,0,R228/W228) -> 0 | U228: =+DEFINICIÓN!$I$31*W228/5 -> 4.166666667 | W228: =+$W$226/12 -> 4.166666667 | X228: =+W228/$W$9 -> 0.008333333333
E230: 9.2. | I230: Se definió el plan de gestión de adquisiciones del proyecto. | O230: 1 | P230: =+O230-1 -> 0 | Q230: 0.4166666667 | R230: =+P230*W230/5 -> 0 | S230: =IF(W230=0,0,R230/W230) -> 0 | U230: =+DEFINICIÓN!$I$31*W230/5 -> 4.166666667 | W230: =+$W$226/12 -> 4.166666667 | X230: =+W230/$W$9 -> 0.008333333333
E232: 9.3. | I232: Se realizó el análisis "Hacer o Comprar" con el fin de establecer la mejor alternativa entre hacerlo en casa vs contratarlo y administrar el contrato. | O232: 1 | P232: =+O232-1 -> 0 | Q232: 0.4166666667 | R232: =+P232*W232/5 -> 0 | S232: =IF(W232=0,0,R232/W232) -> 0 | U232: =+DEFINICIÓN!$I$31*W232/5 -> 4.166666667 | W232: =+$W$226/12 -> 4.166666667 | X232: =+W232/$W$9 -> 0.008333333333
E234: 9.4. | I234: Se definieron los criterios de selección o caracteristicas que deben tener los proveedores para cubrir las necesidades del proyecto. | O234: 1 | P234: =+O234-1 -> 0 | Q234: 0.4166666667 | R234: =+P234*W234/5 -> 0 | S234: =IF(W234=0,0,R234/W234) -> 0 | U234: =+DEFINICIÓN!$I$31*W234/5 -> 4.166666667 | W234: =+$W$226/12 -> 4.166666667 | X234: =+W234/$W$9 -> 0.008333333333
E236: 9.5. | I236: Se definieron y socializaron los tipos de contrato para cada tipo de compra necesaria para el desarrollo del proyecto. | O236: 1 | P236: =+O236-1 -> 0 | Q236: 0.4166666667 | R236: =+P236*W236/5 -> 0 | S236: =IF(W236=0,0,R236/W236) -> 0 | U236: =+DEFINICIÓN!$I$31*W236/5 -> 4.166666667 | W236: =+$W$226/12 -> 4.166666667 | X236: =+W236/$W$9 -> 0.008333333333
E238: 9.6. | I238: Se definieron los documentos a usar durante la solicitud de propuestas y selección de proveedores. | O238: 1 | P238: =+O238-1 -> 0 | Q238: 0.4166666667 | R238: =+P238*W238/5 -> 0 | S238: =IF(W238=0,0,R238/W238) -> 0 | U238: =+DEFINICIÓN!$I$31*W238/5 -> 4.166666667 | W238: =+$W$226/12 -> 4.166666667 | X238: =+W238/$W$9 -> 0.008333333333
E240: 9.7. | I240: Se establecieron los procedimientos y políticas de la organización para la gestión de adquisiciones. | O240: 1 | P240: =+O240-1 -> 0 | Q240: 0.4166666667 | R240: =+P240*W240/5 -> 0 | S240: =IF(W240=0,0,R240/W240) -> 0 | U240: =+DEFINICIÓN!$I$31*W240/5 -> 4.166666667 | W240: =+$W$226/12 -> 4.166666667 | X240: =+W240/$W$9 -> 0.008333333333
E242: 9.8. | I242: Se elaboró el cronograma de adquisiciones para cada entregable del proyecto. | O242: 1 | P242: =+O242-1 -> 0 | Q242: 0.4166666667 | R242: =+P242*W242/5 -> 0 | S242: =IF(W242=0,0,R242/W242) -> 0 | U242: =+DEFINICIÓN!$I$31*W242/5 -> 4.166666667 | W242: =+$W$226/12 -> 4.166666667 | X242: =+W242/$W$9 -> 0.008333333333
E244: 9.9. | I244: Se definieron las características y las cantidades de lo que se va adquirir para el desarrollo de cada entregable. | O244: 1 | P244: =+O244-1 -> 0 | Q244: 0.4166666667 | R244: =+P244*W244/5 -> 0 | S244: =IF(W244=0,0,R244/W244) -> 0 | U244: =+DEFINICIÓN!$I$31*W244/5 -> 4.166666667 | W244: =+$W$226/12 -> 4.166666667 | X244: =+W244/$W$9 -> 0.008333333333
E246: 9.10. | I246: Se definieron las garantías a exigir como parte del plan de gestión de adquisiciones. | O246: 1 | P246: =+O246-1 -> 0 | Q246: 0.4166666667 | R246: =+P246*W246/5 -> 0 | S246: =IF(W246=0,0,R246/W246) -> 0 | U246: =+DEFINICIÓN!$I$31*W246/5 -> 4.166666667 | W246: =+$W$226/12 -> 4.166666667 | X246: =+W246/$W$9 -> 0.008333333333
E248: 9.11. | I248: Se establecieron las métricas a utilizar para gestionar los contratos y evaluar los proveedores. | O248: 1 | P248: =+O248-1 -> 0 | Q248: 0.4166666667 | R248: =+P248*W248/5 -> 0 | S248: =IF(W248=0,0,R248/W248) -> 0 | U248: =+DEFINICIÓN!$I$31*W248/5 -> 4.166666667 | W248: =+$W$226/12 -> 4.166666667 | X248: =+W248/$W$9 -> 0.008333333333
E250: 9.12. | I250: Se definieron los recursos necesarios para la gestión de adquisiciones del proyecto. | O250: 1 | P250: =+O250-1 -> 0 | Q250: 0.4166666667 | R250: =+P250*W250/5 -> 0 | S250: =IF(W250=0,0,R250/W250) -> 0 | U250: =+DEFINICIÓN!$I$31*W250/5 -> 4.166666667 | W250: =+$W$226/12 -> 4.166666667 | X250: =+W250/$W$9 -> 0.008333333333
D252: 10. | G252: DEFINICIÓN DE RECURSOS HUMANOS | R252: =+SUBTOTAL(9,R254:R276) -> 0 | S252: =IF(W252=0,0,R252/W252) -> 0 | U252: =SUBTOTAL(9,U254:U276) -> 50 | W252: =+$W$9*X252 -> 50 | X252: =+DEFINICIÓN!G33 -> 0.1
E254: 10.1. | I254: Se desarrolló el plan de recursos humanos para el proyecto. | O254: 1 | P254: =+O254-1 -> 0 | Q254: 0.8333333333 | R254: =+P254*W254/5 -> 0 | S254: =IF(W254=0,0,R254/W254) -> 0 | U254: =+DEFINICIÓN!$I$33*W254/5 -> 4.166666667 | W254: =+$W$252/12 -> 4.166666667 | X254: =+W254/$W$9 -> 0.008333333333
E256: 10.2. | I256: Los roles y responsabilidades requeridos por el proyecto fueron identificados y documentados (Matriz RAM). | O256: 1 | P256: =+O256-1 -> 0 | Q256: 0.8333333333 | R256: =+P256*W256/5 -> 0 | S256: =IF(W256=0,0,R256/W256) -> 0 | U256: =+DEFINICIÓN!$I$33*W256/5 -> 4.166666667 | W256: =+$W$252/12 -> 4.166666667 | X256: =+W256/$W$9 -> 0.008333333333
E258: 10.3. | I258: La habilidades que deben poseer los integrantes del equipo de trabajo del proyecto fueron definidas | O258: 1 | P258: =+O258-1 -> 0 | Q258: 0.8333333333 | R258: =+P258*W258/5 -> 0 | S258: =IF(W258=0,0,R258/W258) -> 0 | U258: =+DEFINICIÓN!$I$33*W258/5 -> 4.166666667 | W258: =+$W$252/12 -> 4.166666667 | X258: =+W258/$W$9 -> 0.008333333333
E260: 10.4. | I260: Se desarrollaron el organigrama y la descripción de cargos del proyecto. | O260: 1 | P260: =+O260-1 -> 0 | Q260: 0.8333333333 | R260: =+P260*W260/5 -> 0 | S260: =IF(W260=0,0,R260/W260) -> 0 | U260: =+DEFINICIÓN!$I$33*W260/5 -> 4.166666667 | W260: =+$W$252/12 -> 4.166666667 | X260: =+W260/$W$9 -> 0.008333333333
E262: 10.5. | I262: Las relaciones de comunicación entre el personal del proyecto fueron definidas y documentadas. | O262: 1 | P262: =+O262-1 -> 0 | Q262: 0.8333333333 | R262: =+P262*W262/5 -> 0 | S262: =IF(W262=0,0,R262/W262) -> 0 | U262: =+DEFINICIÓN!$I$33*W262/5 -> 4.166666667 | W262: =+$W$252/12 -> 4.166666667 | X262: =+W262/$W$9 -> 0.008333333333
E264: 10.6. | I264: Cada actividad del proyecto tiene un único responsable, de manera que no hay actividades sin responsable asignado. | O264: 1 | P264: =+O264-1 -> 0 | Q264: 0.8333333333 | R264: =+P264*W264/5 -> 0 | S264: =IF(W264=0,0,R264/W264) -> 0 | U264: =+DEFINICIÓN!$I$33*W264/5 -> 4.166666667 | W264: =+$W$252/12 -> 4.166666667 | X264: =+W264/$W$9 -> 0.008333333333
E266: 10.7. | I266: El plan de gestión de recursos humanos incluye un plan detallado de adquisición de personal. | O266: 1 | P266: =+O266-1 -> 0 | Q266: 0.8333333333 | R266: =+P266*W266/5 -> 0 | S266: =IF(W266=0,0,R266/W266) -> 0 | U266: =+DEFINICIÓN!$I$33*W266/5 -> 4.166666667 | W266: =+$W$252/12 -> 4.166666667 | X266: =+W266/$W$9 -> 0.008333333333
E268: 10.8. | I268: Se definió y documentó un plan de capacitación para los recursos humanos del proyecto. | O268: 1 | P268: =+O268-1 -> 0 | Q268: 0.8333333333 | R268: =+P268*W268/5 -> 0 | S268: =IF(W268=0,0,R268/W268) -> 0 | U268: =+DEFINICIÓN!$I$33*W268/5 -> 4.166666667 | W268: =+$W$252/12 -> 4.166666667 | X268: =+W268/$W$9 -> 0.008333333333
E270: 10.9. | I270: Se definió y socializó un programa de reconocimiento y recompensas destinado a motivar a los integrantes del equipo de trabajo del proyecto. | O270: 1 | P270: =+O270-1 -> 0 | Q270: 0.8333333333 | R270: =+P270*W270/5 -> 0 | S270: =IF(W270=0,0,R270/W270) -> 0 | U270: =+DEFINICIÓN!$I$33*W270/5 -> 4.166666667 | W270: =+$W$252/12 -> 4.166666667 | X270: =+W270/$W$9 -> 0.008333333333
E272: 10.10. | I272: Las herramientas para la evaluación del personal fueron definidas inicialmente. | O272: 1 | P272: =+O272-1 -> 0 | Q272: 0.8333333333 | R272: =+P272*W272/5 -> 0 | S272: =IF(W272=0,0,R272/W272) -> 0 | U272: =+DEFINICIÓN!$I$33*W272/5 -> 4.166666667 | W272: =+$W$252/12 -> 4.166666667 | X272: =+W272/$W$9 -> 0.008333333333
E274: 10.11. | I274: El plan de gestión de recursos humanos incluye el cronograma de contratación y liberación de recursos humanos del proyecto. | O274: 1 | P274: =+O274-1 -> 0 | Q274: 0.8333333333 | R274: =+P274*W274/5 -> 0 | S274: =IF(W274=0,0,R274/W274) -> 0 | U274: =+DEFINICIÓN!$I$33*W274/5 -> 4.166666667 | W274: =+$W$252/12 -> 4.166666667 | X274: =+W274/$W$9 -> 0.008333333333
E276: 10.12. | I276: Se definieron los recursos necesarios para la gestión de recursos humanos del proyecto. | O276: 1 | P276: =+O276-1 -> 0 | Q276: 0.8333333333 | R276: =+P276*W276/5 -> 0 | S276: =IF(W276=0,0,R276/W276) -> 0 | U276: =+DEFINICIÓN!$I$33*W276/5 -> 4.166666667 | W276: =+$W$252/12 -> 4.166666667 | X276: =+W276/$W$9 -> 0.008333333333
R279: =+R9 -> 0 | S279: =+S9 -> 0

Sheet RIESGOS (hidden)
C6: Seleccione de la siguiente tabla el caso que se acomoda a las condiciones de su proyecto, en términos de las dimensiones de la matriz de riesgos y de la cantidad de niveles de tolerancia de riesgos.
C9: A continuación diligencie el registro de riesgos que se encuentra debajo de la matriz de riesgos. Abajo encontrará el acceso a la hoja de instrucciones.
D13: Matriz de riesgos | E13: 5 x 5 | F13: 5 x 5 | G13: 5 x 5 | H13: 4 x 4 | I13: 4 x 4 | J13: 3 x 3
D14: Niveles de tolerancia | E14: 5 | F14: 4 | G14: 3 | H14: 4 | I14: 3 | J14: 3
D17: NIVEL DE RIESGO GLOBAL | G17: ='Caso 1'!F50 -> No definido | H17: ='Caso 1'!G50 ->  | J17: CASO 1
D18: NOTA: Se mostrará el resultado del último caso seleccionado. Debe ser muy cuidadoso con la selección de este únicamente por el caso que aplique.

Sheet INSTRUCCIONES RIESGOS (hidden)
C7: La presente herramienta contempla las combinaciones típicas entre matrices de riesgos y los diferentes niveles de tolerancia que tienen las organizaciones, así:
G11: CASO 1 | H11: CASO 2 | I11: CASO 3 | J11: CASO 4 | K11: CASO 5 | L11: CASO 6
E13: Matriz de riesgos | G13: 5 x 5 | H13: 5 x 5 | I13: 5 x 5 | J13: 4 x 4 | K13: 4 x 4 | L13: 3 x 3
E14: Niveles de tolerancia | G14: 5 | H14: 4 | I14: 3 | J14: 4 | K14: 3 | L14: 3
D18: Instrucciones:
D19: 1. | E19: Seleccionar, de la tabla anterior, el caso que aplica para la organización.
D20: 2. | E20: Diligenciar los valores de probabilidad y de impacto determinados por la organización/proyecto para calificar los riesgos, de menor a mayor en las casillas sombreadas de color azul de la tabla "probabilidad e impacto".
D21: 3. | E21: Diligencie los valores de los rangos de la tolerancia del riesgo determinados por la organización/ proyecto, que en la tabla "criterios de aceptación del riesgo" se encuentran sombreados con color azul.
D22: 4. | E22: De acuerdo con el análisis cualitativo de los riesgos del proyecto, y comparando con la Grafica "Matriz de Riesgos Base", escribir dentro de la Gráfica "Matriz Riesgo Proyecto" cuántos riesgos se calificaron para cada una de las casillas que reprensentan un calificación de probabilidad x impacto.
E23: Es decir, para cada una de la casillas sombreadas con color azul, diligencia cuantos riesgos fueron identificados en esa valoración del análisis cualitativo.

Sheet Caso 1 (hidden)
C6: 1. Diligencia en cada una de las casillas sombreadas los niveles definidos como escalas de probabilidad e impacto para el proyecto y los niveles de tolerancia del riesgo. 2. Diligencie la definición de la escala de impacto para las diferentes categorías de riesgos que identifiquen el proyecto.
G10: PROBABILIDAD E IMPACTO
G11: Menor | K11: Mayor
F12: Valores probabilidad
F13: Valores Impacto
H15: CRITERIOS DE ACEPTACION DEL RIESGO
H16: Nivel | I16: Valor número
I17: Minimo | J17: Máximo
H18: Aceptable | I18: =G12*G13 -> 0
H19: Tolerable
H20: Moderado
H21: Intolerable
H22: Inadmisible | J22: =K12*K13 -> 0
G25: MATRIZ DE RIESGOS BASE
G27: IMPACTO
G28: =G13 -> 0 | H28: =H13 -> 0 | I28: =I13 -> 0 | J28: =J13 -> 0 | K28: =K13 -> 0
F29: =K12 -> 0 | G29: =$G$28*F29 -> 0 | H29: =$H$28*F29 -> 0 | I29: =$I$28*F29 -> 0 | J29: =$J$28*F29 -> 0 | K29: =$K$28*F29 -> 0 | L29: PROBABILIDAD | Q29: 16 | R29: 32 | S29: 64 | T29: 128 | U29: 256
F30: =J12 -> 0 | G30: =$G$28*F30 -> 0 | H30: =$H$28*F30 -> 0 | I30: =$I$28*F30 -> 0 | J30: =$J$28*F30 -> 0 | K30: =$K$28*F30 -> 0 | Q30: 8 | R30: 16 | S30: 32 | T30: 64 | U30: 128
F31: =I12 -> 0 | G31: =$G$28*F31 -> 0 | H31: =$H$28*F31 -> 0 | I31: =$I$28*F31 -> 0 | J31: =$J$28*F31 -> 0 | K31: =$K$28*F31 -> 0 | Q31: 4 | R31: 8 | S31: 16 | T31: 32 | U31: 64
F32: =H12 -> 0 | G32: =$G$28*F32 -> 0 | H32: =$H$28*F32 -> 0 | I32: =$I$28*F32 -> 0 | J32: =$J$28*F32 -> 0 | K32: =$K$28*F32 -> 0 | Q32: 2 | R32: 4 | S32: 8 | T32: 16 | U32: 32
F33: =G12 -> 0 | G33: =$G$28*F33 -> 0 | H33: =$H$28*F33 -> 0 | I33: =$I$28*F33 -> 0 | J33: =$J$28*F33 -> 0 | K33: =$K$28*F33 -> 0 | Q33: 1 | R33: 2 | S33: 4 | T33: 8 | U33: 16
E34: CATERGORIAS DE RIESGO | F34: COSTO | G34: Incremento < 1 mill USD | H34: Incremento entre 1 y 3 MILL USD | I34: Incremento entre 3 y 7 MILL USD | J34: Incremento entre 7 y 10 MILL USD | K34: Incremento > 10 mill USD
F35: TIEMPO (retraso) | G35: Inferior a __ meses sin ejecución de garantía | H35: Entre __ y meses sin ejecución de garantía | I35: Entre __ y __ meses sin ejecución de garantía | J35: Entre __ y __ meses sin ejecución de garantía o retraso menor con ejecución de garantía | K35: > a ___ meses sin ejecución de garantía o retraso menor con ejecución de garantía
F36: PERSONAS | G36: ___ Lesiones sin incapacidad | H36: Incapacidad temporal para menos del __% de los trabajadores | I36: Incapacidad permanente parcial en menos del __% de los trabajadores. Incapacidad temporal para el __% al __% de los trabajadores | J36: Incapacidad permanente parcial para el __% al __% de los trabajadores. Incapacidad temporal para el __% al __% de los trabajadores | K36: Muerte o invalidez total de una (__) personas Incapacidad permanente parcial en más del __% de los trabajadores. Incapacidad temporal en más del __% de los trabajadores
F37: AMBIENTE | G37: Alteración del factor ambiental menor o igual al ___ | H37: La alteración del factor ambiental está entre ___ y ____ | I37: La alteración del factor ambiental está entre ___ y ____ | J37: La alteración del factor ambiental está entre ___ y ___ | K37: La alteración del factor ambiental es mayor al ___
D50: NIVEL DE RIESGO GLOBAL | F50: =IF(K50=0,"No definido", J50/K50) -> No definido | G50: =J98 ->  | J50: =SUM(K58:K94) -> 0 | K50: =COUNT(K58:K94) -> 0
E53: COD. | F53: DESCRIPCIÓN | I53: PROBABILIDAD | J53: IMPACTO | K53: NIVEL DE RIESGO | M53: ESTADO | N53: ESTRATEGIA DE RESPUESTA
F56: Causa | G56: Evento | H56: Consecuencia
E58: R1 | F58: Causa del Riesgo | G58: Evento del Riesgo | H58: Consecuencia del Riesgo | K58: =IF(I58=0, " ",I58*J58) ->  | L58: =IF(K58=" ", " ",IF(K58<$I$19,$H$18,IF(K58<$I$20,$H$19,IF(K58<$I$21,$H$20,IF(K58<$I$22,$H$21,$H$22))))) -> 
E59: R2 | F59: Causa del Riesgo | G59: Evento del Riesgo | H59: Consecuencia del Riesgo | K59: =IF(I59=0, " ",I59*J59) -> 
E60: R3 | F60: Causa del Riesgo | G60: Evento del Riesgo | H60: Consecuencia del Riesgo
E61: R4 | F61: Causa del Riesgo | G61: Evento del Riesgo | H61: Consecuencia del Riesgo
E62: R5 | F62: Causa del Riesgo | G62: Evento del Riesgo | H62: Consecuencia del Riesgo
E63: R6 | F63: Causa del Riesgo | G63: Evento del Riesgo | H63: Consecuencia del Riesgo
E64: R7 | F64: Causa del Riesgo | G64: Evento del Riesgo | H64: Consecuencia del Riesgo | K64: =IF(I64=0, " ",I64*J64) -> 
E65: R8 | F65: Causa del Riesgo | G65: Evento del Riesgo | H65: Consecuencia del Riesgo
E66: R9 | F66: Causa del Riesgo | G66: Evento del Riesgo | H66: Consecuencia del Riesgo
E67: R10 | F67: Causa del Riesgo | G67: Evento del Riesgo | H67: Consecuencia del Riesgo
E68: R11 | F68: Causa del Riesgo | G68: Evento del Riesgo | H68: Consecuencia del Riesgo
E69: R12 | F69: Causa del Riesgo | G69: Evento del Riesgo | H69: Consecuencia del Riesgo | K69: =IF(I69=0, " ",I69*J69) ->  | L69: =IF(K69=" ", " ",IF(K69<$I$19,$H$18,IF(K69<$I$20,$H$19,IF(K69<$I$21,$H$20,IF(K69<$I$22,$H$21,$H$22))))) -> 
G98: NIVEL DE RIESGO GLOBAL | I98: =F50 -> No definido | J98: =IF(I98="No definido", " ",IF(I98<I19,H18,IF(I98<I20,H19,IF(I98<I21,H20,IF(I98<I22,H21,H22))))) -> 

Sheet Caso 2 (hidden)
C6: 1. Diligencia en cada una de las casillas sombreadas los niveles definidos como escalas de probabilidad e impacto para el proyecto y los niveles de tolerancia del riesgo. 2. Diligencie la definición de la escala de impacto para las diferentes categorías de riesgos que identifiquen el proyecto.
G10: PROBABILIDAD E IMPACTO
G11: Menor | K11: Mayor
F12: Valores probabilidad
F13: Valores Impacto
H15: CRITERIOS DE ACEPTACION DEL RIESGO
H16: Nivel | I16: Valor número
I17: Minimo | J17: Máximo
H18: Aceptable | I18: =G12*G13 -> 0
H19: Tolerable
H20: Inaceptable
H21: Inadmisible | J21: =K13*K12 -> 0
G24: MATRIZ DE RIESGOS BASE
G26: IMPACTO
G27: =G13 -> 0 | H27: =H13 -> 0 | I27: =I13 -> 0 | J27: =J13 -> 0 | K27: =K13 -> 0
F28: =K12 -> 0 | G28: =$G$27*F28 -> 0 | H28: =$H$27*F28 -> 0 | I28: =$I$27*F28 -> 0 | J28: =$J$27*F28 -> 0 | K28: =$K$27*F28 -> 0 | L28: PROBABILIDAD | Q28: 16 | R28: 32 | S28: 64 | T28: 128 | U28: 256
F29: =J12 -> 0 | G29: =$G$27*F29 -> 0 | H29: =$H$27*F29 -> 0 | I29: =$I$27*F29 -> 0 | J29: =$J$27*F29 -> 0 | K29: =$K$27*F29 -> 0 | Q29: 8 | R29: 16 | S29: 32 | T29: 64 | U29: 128
F30: =I12 -> 0 | G30: =$G$27*F30 -> 0 | H30: =$H$27*F30 -> 0 | I30: =$I$27*F30 -> 0 | J30: =$J$27*F30 -> 0 | K30: =$K$27*F30 -> 0 | Q30: 4 | R30: 8 | S30: 16 | T30: 32 | U30: 64
F31: =H12 -> 0 | G31: =$G$27*F31 -> 0 | H31: =$H$27*F31 -> 0 | I31: =$I$27*F31 -> 0 | J31: =$J$27*F31 -> 0 | K31: =$K$27*F31 -> 0 | Q31: 2 | R31: 4 | S31: 8 | T31: 16 | U31: 32
F32: =G12 -> 0 | G32: =$G$27*F32 -> 0 | H32: =$H$27*F32 -> 0 | I32: =$I$27*F32 -> 0 | J32: =$J$27*F32 -> 0 | K32: =$K$27*F32 -> 0 | Q32: 1 | R32: 2 | S32: 4 | T32: 8 | U32: 16
E33: CATERGORIAS DE RIESGO | F33: TIEMPO | G33: Inferior a __ meses sin ejecución de garantía | H33: Entre __ y meses sin ejecución de garantía | I33: Entre __ y __ meses sin ejecución de garantía | J33: Entre __ y __ meses sin ejecución de garantía o retraso menor con ejecución de garantía | K33: > a ___ meses sin ejecución de garantía o retraso menor con ejecución de garantía
F34: PERSONAS | G34: ___ Lesiones sin incapacidad | H34: Incapacidad temporal para menos del __% de los trabajadores | I34: Incapacidad permanente parcial en menos del __% de los trabajadores. Incapacidad temporal para el __% al __% de los trabajadores | J34: Incapacidad permanente parcial para el __% al __% de los trabajadores. Incapacidad temporal para el __% al __% de los trabajadores | K34: Muerte o invalidez total de una (__) personas Incapacidad permanente parcial en más del __% de los trabajadores. Incapacidad temporal en más del __% de los trabajadores
F35: AMBIENTE | G35: Alteración del factor ambiental menor o igual al ___ | H35: La alteración del factor ambiental está entre ___ y ____ | I35: La alteración del factor ambiental está entre ___ y ____ | J35: La alteración del factor ambiental está entre ___ y ___ | K35: La alteración del factor ambiental es mayor al ___
D49: NIVEL DE RIESGO GLOBAL | F49: =IF(K49=0,"No definido", J49/K49) -> No definido | G49: =J101 ->  | J49: =SUM(K57:K97) -> 0 | K49: =COUNT(K57:K97) -> 0
E52: COD. | F52: DESCRIPCIÓN | I52: PROBABILIDAD | J52: IMPACTO | K52: NIVEL DE RIESGO | M52: ESTADO | N52: ESTRATEGIA DE RESPUESTA
F55: Causa | G55: Evento | H55: Impacto | N55: estrategia
E57: R1 | F57: Causa del Riesgo | G57: Evento del Riesgo | H57: Consecuencia del Riesgo | K57: =IF(I57=0, " ",I57*J57) ->  | L57: =IF(K57=" ", " ",IF(K57<$I$19,$H$18,IF(K57<$I$20,$H$19,IF(K57<$I$21,$H$20,$H$21)))) -> 
E58: R2 | F58: Causa del Riesgo | G58: Evento del Riesgo | H58: Consecuencia del Riesgo | K58: =IF(I58=0, " ",I58*J58) -> 
E59: R3 | F59: Causa del Riesgo | G59: Evento del Riesgo | H59: Consecuencia del Riesgo | K59: =IF(I59=0, " ",I59*J59) -> 
E60: R4 | F60: Causa del Riesgo | G60: Evento del Riesgo | H60: Consecuencia del Riesgo | K60: =IF(I60=0, " ",I60*J60) -> 
E61: R5 | F61: Causa del Riesgo | G61: Evento del Riesgo | H61: Consecuencia del Riesgo | K61: =IF(I61=0, " ",I61*J61) -> 
E62: R6 | F62: Causa del Riesgo | G62: Evento del Riesgo | H62: Consecuencia del Riesgo | K62: =IF(I62=0, " ",I62*J62) -> 
E63: R7 | F63: Causa del Riesgo | G63: Evento del Riesgo | H63: Consecuencia del Riesgo | K63: =IF(I63=0, " ",I63*J63) -> 
E64: R8 | F64: Causa del Riesgo | G64: Evento del Riesgo | H64: Consecuencia del Riesgo | K64: =IF(I64=0, " ",I64*J64) -> 
E65: R9 | F65: Causa del Riesgo | G65: Evento del Riesgo | H65: Consecuencia del Riesgo | K65: =IF(I65=0, " ",I65*J65) -> 
E66: R10 | F66: Causa del Riesgo | G66: Evento del Riesgo | H66: Consecuencia del Riesgo | K66: =IF(I66=0, " ",I66*J66) -> 
E67: R11 | F67: Causa del Riesgo | G67: Evento del Riesgo | H67: Consecuencia del Riesgo | K67: =IF(I67=0, " ",I67*J67) -> 
E68: R12 | F68: Causa del Riesgo | G68: Evento del Riesgo | H68: Consecuencia del Riesgo | K68: =IF(I68=0, " ",I68*J68) -> 
E69: R13 | F69: Causa del Riesgo | G69: Evento del Riesgo | H69: Consecuencia del Riesgo | K69: =IF(I69=0, " ",I69*J69) -> 
E70: R14 | F70: Causa del Riesgo | G70: Evento del Riesgo | H70: Consecuencia del Riesgo | K70: =IF(I70=0, " ",I70*J70) -> 
E71: R15 | F71: Causa del Riesgo | G71: Evento del Riesgo | H71: Consecuencia del Riesgo | K71: =IF(I71=0, " ",I71*J71) -> 
E72: R16 | F72: Causa del Riesgo | G72: Evento del Riesgo | H72: Consecuencia del Riesgo | K72: =IF(I72=0, " ",I72*J72) -> 
E73: R17 | F73: Causa del Riesgo | G73: Evento del Riesgo | H73: Consecuencia del Riesgo | K73: =IF(I73=0, " ",I73*J73) -> 
E74: R18 | F74: Causa del Riesgo | G74: Evento del Riesgo | H74: Consecuencia del Riesgo | K74: =IF(I74=0, " ",I74*J74) -> 
E75: R19 | F75: Causa del Riesgo | G75: Evento del Riesgo | H75: Consecuencia del Riesgo | K75: =IF(I75=0, " ",I75*J75) -> 
E76: R20 | F76: Causa del Riesgo | G76: Evento del Riesgo | H76: Consecuencia del Riesgo | K76: =IF(I76=0, " ",I76*J76) -> 
K77: =IF(I77=0, " ",I77*J77) -> 
K78: =IF(I78=0, " ",I78*J78) -> 
K79: =IF(I79=0, " ",I79*J79) -> 
K80: =IF(I80=0, " ",I80*J80) -> 
K81: =IF(I81=0, " ",I81*J81) -> 
K82: =IF(I82=0, " ",I82*J82) -> 
L83: =IF(K83=" ", " ",IF(K83<$I$19,$H$18,IF(K83<$I$20,$H$19,IF(K83<$I$21,$H$20,$H$21)))) -> 
G101: NIVEL DE RIESGO GLOBAL | I101: =F49 -> No definido | J101: =IF(I101="No definido", " ",IF(I101<I19,H19,IF(I101<I20,H19,IF(I101<I21,H20,H21)))) -> 

Sheet Caso 3 (hidden)
C6: 1. Diligencia en cada una de las casillas sombreadas los niveles definidos como escalas de probabilidad e impacto para el proyecto y los niveles de tolerancia del riesgo. 2. Diligencie la definición de la escala de impacto para las diferentes categorías de riesgos que identifiquen el proyecto.
G10: PROBABILIDAD E IMPACTO
G11: Menor | K11: Mayor
F12: Valores probabilidad
F13: Valores Impacto
H15: CRITERIOS DE ACEPTACION DEL RIESGO
H16: Nivel | I16: Valor número
I17: Minimo | J17: Máximo
H18: Aceptable | I18: =G12*G13 -> 0
H19: Tolerable
H20: Inadmisible | J20: =K12*K13 -> 0
G23: MATRIZ DE RIESGOS BASE
G25: IMPACTO
G26: =G13 -> 0 | H26: =H13 -> 0 | I26: =I13 -> 0 | J26: =J13 -> 0 | K26: =K13 -> 0
F27: =K12 -> 0 | G27: =$G$26*F27 -> 0 | H27: =$H$26*F27 -> 0 | I27: =$I$26*F27 -> 0 | J27: =$J$26*F27 -> 0 | K27: =$K$26*F27 -> 0 | L27: PROBABILIDAD | Q27: 16 | R27: 32 | S27: 64 | T27: 128 | U27: 256
F28: =J12 -> 0 | G28: =$G$26*F28 -> 0 | H28: =$H$26*F28 -> 0 | I28: =$I$26*F28 -> 0 | J28: =$J$26*F28 -> 0 | K28: =$K$26*F28 -> 0 | Q28: 8 | R28: 16 | S28: 32 | T28: 64 | U28: 128
F29: =I12 -> 0 | G29: =$G$26*F29 -> 0 | H29: =$H$26*F29 -> 0 | I29: =$I$26*F29 -> 0 | J29: =$J$26*F29 -> 0 | K29: =$K$26*F29 -> 0 | Q29: 4 | R29: 8 | S29: 16 | T29: 32 | U29: 64
F30: =H12 -> 0 | G30: =$G$26*F30 -> 0 | H30: =$H$26*F30 -> 0 | I30: =$I$26*F30 -> 0 | J30: =$J$26*F30 -> 0 | K30: =$K$26*F30 -> 0 | Q30: 2 | R30: 4 | S30: 8 | T30: 16 | U30: 32
F31: =G12 -> 0 | G31: =$G$26*F31 -> 0 | H31: =$H$26*F31 -> 0 | I31: =$I$26*F31 -> 0 | J31: =$J$26*F31 -> 0 | K31: =$K$26*F31 -> 0 | Q31: 1 | R31: 2 | S31: 4 | T31: 8 | U31: 16
E32: CATERGORIAS DE RIESGO | F32: COSTO | G32: Variación < __% | H32: Variac. entre ___ y _____ | I32: Variac. entre ___ y _____ | J32: Variac. entre ___ y _____ | K32: Variación > __%
F33: TIEMPO | G33: Variación < __% | H33: Variac. entre ___ y _____ | I33: Variac. entre ___ y _____ | J33: Variac. entre ___ y _____ | K33: Variación > __%
F34: PERSONAS | G34: __Lesiones sin incapacidad | H34: Incapacidad temporal para menos del __% de los trabajadores | I34: Incapacidad permanente parcial en menos del __% de los trabajadores. Incapacidad temporal para el __% al __% de los trabajadores | J34: Incapacidad permanente parcial para el __% al __% de los trabajadores. Incapacidad temporal para el __% al __% de los trabajadores | K34: Muerte o invalidez total de una (__) persona Incapacidad permanente parcial en más del __% de los trabajadores. Incapacidad temporal en más del __% de los trabajadores
F35: AMBIENTE | G35: Alteración del factor ambiental menor o igual al __%. | H35: La alteración del factor ambiental está entre ___ y ____ | I35: La alteración del factor ambiental está entre ___ y ____ | J35: La alteración del factor ambiental está entre __% y __% | K35: La alteración del factor ambiental es mayor al __%.
D48: NIVEL DE RIESGO GLOBAL | F48: =IF(K48=0,"No definido", J48/K48) -> No definido | G48: =J91 ->  | J48: =SUM(K56:K87) -> 0 | K48: =COUNT(K56:K87) -> 0
E51: COD. | F51: DESCRIPCIÓN | I51: PROBABILIDAD | J51: IMPACTO | K51: NIVEL DE RIESGO | M51: ESTADO | N51: ESTRATEGIA DE RESPUESTA
F54: Causa | G54: Evento | H54: Consecuencia
E56: R1 | F56: Causa del Riesgo | G56: Evento del Riesgo | H56: Consecuencia del Riesgo | K56: =IF(I56=0, " ",I56*J56) ->  | L56: =IF(K56=" "," ",IF(K56<$I$19,$H$18,IF(K56<$I$20,$H$19,$H$20))) -> 
E57: R2 | F57: Causa del Riesgo | G57: Evento del Riesgo | H57: Consecuencia del Riesgo | K57: =IF(I57=0, " ",I57*J57) ->  | L57: =IF(K57=" "," ",IF(K57<$I$19,$H$18,IF(K57<$I$20,$H$19,$H$20))) -> 
E58: R3 | F58: Causa del Riesgo | G58: Evento del Riesgo | H58: Consecuencia del Riesgo | L58: =IF(K58=" "," ",IF(K58<$I$19,$H$18,IF(K58<$I$20,$H$19,$H$20))) -> 
E59: R4 | F59: Causa del Riesgo | G59: Evento del Riesgo | H59: Consecuencia del Riesgo | K59: =IF(I59=0, " ",I59*J59) ->  | L59: =IF(K59=" "," ",IF(K59<$I$19,$H$18,IF(K59<$I$20,$H$19,$H$20))) -> 
E60: R5 | F60: Causa del Riesgo | G60: Evento del Riesgo | H60: Consecuencia del Riesgo
E61: R6 | F61: Causa del Riesgo | G61: Evento del Riesgo | H61: Consecuencia del Riesgo
E62: R7 | F62: Causa del Riesgo | G62: Evento del Riesgo | H62: Consecuencia del Riesgo
E63: R8 | F63: Causa del Riesgo | G63: Evento del Riesgo | H63: Consecuencia del Riesgo
E64: R9 | F64: Causa del Riesgo | G64: Evento del Riesgo | H64: Consecuencia del Riesgo
E65: R10 | F65: Causa del Riesgo | G65: Evento del Riesgo | H65: Consecuencia del Riesgo
E66: R11 | F66: Causa del Riesgo | G66: Evento del Riesgo | H66: Consecuencia del Riesgo
E67: R12 | F67: Causa del Riesgo | G67: Evento del Riesgo | H67: Consecuencia del Riesgo
G91: NIVEL DE RIESGO GLOBAL | I91: =F48 -> No definido | J91: =IF(I91="No definido", " ",IF(I91<I19,H18,IF(I91<I20,H19,H20))) -> 

Sheet Caso 4 (hidden)
C6: 1. Diligencia en cada una de las casillas sombreadas los niveles definidos como escalas de probabilidad e impacto para el proyecto y los niveles de tolerancia del riesgo. 2. Diligencie la definición de la escala de impacto para las diferentes categorías de riesgos que identifiquen el proyecto.
H10: PROBABILIDAD E IMPACTO
H11: Menor | K11: Mayor
G12: Valores probabilidad
G13: Valores Impacto
H15: CRITERIOS DE ACEPTACION DEL RIESGO
H16: Nivel | I16: Valor número
I17: Minimo | J17: Máximo
H18: Aceptable | I18: =H12*H13 -> 0
H19: Tolerable
H20: Moderado
H21: Inadmisible | J21: =K12*K13 -> 0
H24: MATRIZ DE RIESGOS BASE
H26: IMPACTO
H27: =H13 -> 0 | I27: =I13 -> 0 | J27: =J13 -> 0 | K27: =K13 -> 0
G28: =K12 -> 0 | H28: =$H$27*G28 -> 0 | I28: =$I$27*G28 -> 0 | J28: =$J$27*G28 -> 0 | K28: =$K$27*G28 -> 0 | L28: PROBABILIDAD | Q28: 32 | R28: 64 | S28: 128 | T28: 256
G29: =J12 -> 0 | H29: =$H$27*G29 -> 0 | I29: =$I$27*G29 -> 0 | J29: =$J$27*G29 -> 0 | K29: =$K$27*G29 -> 0 | Q29: 8 | R29: 16 | S29: 32 | T29: 64
G30: =I12 -> 0 | H30: =$H$27*G30 -> 0 | I30: =$I$27*G30 -> 0 | J30: =$J$27*G30 -> 0 | K30: =$K$27*G30 -> 0 | Q30: 4 | R30: 8 | S30: 16 | T30: 32
G31: =H12 -> 0 | H31: =$H$27*G31 -> 0 | I31: =$I$27*G31 -> 0 | J31: =$J$27*G31 -> 0 | K31: =$K$27*G31 -> 0 | Q31: 2 | R31: 4 | S31: 8 | T31: 16
F32: CATERGORIAS DE RIESGO | G32: COSTO | H32: Variación < __% | I32: Variac. entre ___ y _____ | J32: Variac. entre ___ y _____ | K32: Variación > __%
G33: TIEMPO | H33: Variación < __% | I33: Variac. entre ___ y _____ | J33: Variac. entre ___ y _____ | K33: Variación > __%
G34: PERSONAS | H34: __ Lesiones sin incapacidad | I34: Incapacidad temporal para menos del __% de los trabajadores | J34: Incapacidad permanente parcial en menos del __% de los trabajadores. Incapacidad temporal para el __% al __% de los trabajadores | K34: Muerte o invalidez total de una (__) personas Incapacidad permanente parcial en más del__% de los trabajadores. Incapacidad temporal en más del __% de los trabajadores
G35: AMBIENTE | H35: Alteración del factor ambiental menor o igual al __%. | I35: La alteración del factor ambiental está entre ___ y ____ | J35: La alteración del factor ambiental está entre ___ y ____ | K35: La alteración del factor ambiental es mayor al __%.
D48: NIVEL DE RIESGO GLOBAL | F48: =IF(K48=0,"No definido", J48/K48) -> No definido | G48: =J89 ->  | J48: =SUM(K56:K85) -> 0 | K48: =COUNT(K56:K85) -> 0
E51: COD. | F51: DESCRIPCIÓN | I51: PROBABILIDAD | J51: IMPACTO | K51: NIVEL DE RIESGO | M51: ESTADO | N51: ESTRATEGIA DE RESPUESTA
F54: Causa | G54: Evento | H54: Consecuencia
E56: R1 | F56: Causa del Riesgo | G56: Evento del Riesgo | H56: Consecuencia del Riesgo | K56: =IF(I56=0, " ",I56*J56) ->  | L56: =IF(K56=" ", " ",IF(K56<$I$19,$H$18,IF(K56<$I$20,$H$19,IF(K56<$I$21,$H$20,$H$21)))) -> 
E57: R2 | F57: Causa del Riesgo | G57: Evento del Riesgo | H57: Consecuencia del Riesgo | K57: =IF(I57=0, " ",I57*J57) -> 
E58: R3 | F58: Causa del Riesgo | G58: Evento del Riesgo | H58: Consecuencia del Riesgo
E59: R4 | F59: Causa del Riesgo | G59: Evento del Riesgo | H59: Consecuencia del Riesgo
E60: R5 | F60: Causa del Riesgo | G60: Evento del Riesgo | H60: Consecuencia del Riesgo
E61: R6 | F61: Causa del Riesgo | G61: Evento del Riesgo | H61: Consecuencia del Riesgo
E62: R7 | F62: Causa del Riesgo | G62: Evento del Riesgo | H62: Consecuencia del Riesgo | K62: =IF(I62=0, " ",I62*J62) -> 
E63: R8 | F63: Causa del Riesgo | G63: Evento del Riesgo | H63: Consecuencia del Riesgo
E64: R9 | F64: Causa del Riesgo | G64: Evento del Riesgo | H64: Consecuencia del Riesgo
E65: R10 | F65: Causa del Riesgo | G65: Evento del Riesgo | H65: Consecuencia del Riesgo
E66: R11 | F66: Causa del Riesgo | G66: Evento del Riesgo | H66: Consecuencia del Riesgo
E67: R12 | F67: Causa del Riesgo | G67: Evento del Riesgo | H67: Consecuencia del Riesgo | K67: =IF(I67=0, " ",I67*J67) ->  | L67: =IF(K67=" ", " ",IF(K67<$I$19,$H$18,IF(K67<$I$20,$H$19,IF(K67<$I$21,$H$20,$H$21)))) -> 
K69: =IF(I69=0, " ",I69*J69) ->  | L69: =IF(K69=" ", " ",IF(K69<$I$19,$H$18,IF(K69<$I$20,$H$19,IF(K69<$I$21,$H$20,$H$21)))) -> 
G89: NIVEL DE RIESGO GLOBAL | I89: =F48 -> No definido | J89: =IF(I89="No definido", " ",IF(I89<I19,H18,IF(I89<I20,H19,IF(I89<I21,H20,H21)))) -> 

Sheet Caso 5 (hidden)
C6: 1. Diligencia en cada una de las casillas sombreadas los niveles definidos como escalas de probabilidad e impacto para el proyecto y los niveles de tolerancia del riesgo. 2. Diligencie la definición de la escala de impacto para las diferentes categorías de riesgos que identifiquen el proyecto.
H10: PROBABILIDAD E IMPACTO
H11: Menor | K11: Mayor
G12: Valores probabilidad
G13: Valores Impacto
H15: CRITERIOS DE ACEPTACION DEL RIESGO
H16: Nivel | I16: Valor número
I17: Minimo | J17: Máximo
H18: Aceptable | I18: =+H12*H13 -> 0
H19: Tolerable
H20: Inadmisible | J20: =+K12*K13 -> 0
H23: MATRIZ DE RIESGOS BASE
H25: IMPACTO
H26: =H13 -> 0 | I26: =I13 -> 0 | J26: =J13 -> 0 | K26: =K13 -> 0
G27: =K12 -> 0 | H27: =$H$26*G27 -> 0 | I27: =$I$26*G27 -> 0 | J27: =$J$26*G27 -> 0 | K27: =$K$26*G27 -> 0 | L27: PROBABILIDAD | Q27: 32 | R27: 64 | S27: 128 | T27: 256
G28: =J12 -> 0 | H28: =$H$26*G28 -> 0 | I28: =$I$26*G28 -> 0 | J28: =$J$26*G28 -> 0 | K28: =$K$26*G28 -> 0 | Q28: 8 | R28: 16 | S28: 32 | T28: 64
G29: =I12 -> 0 | H29: =$H$26*G29 -> 0 | I29: =$I$26*G29 -> 0 | J29: =$J$26*G29 -> 0 | K29: =$K$26*G29 -> 0 | Q29: 4 | R29: 8 | S29: 16 | T29: 32
G30: =H12 -> 0 | H30: =$H$26*G30 -> 0 | I30: =$I$26*G30 -> 0 | J30: =$J$26*G30 -> 0 | K30: =$K$26*G30 -> 0 | Q30: 2 | R30: 4 | S30: 8 | T30: 16
F31: CATERGORIAS DE RIESGO | G31: COSTO | H31: Variación <__% | I31: Variac. entre __% y __% | J31: Variac. Entre __% y __% | K31: Variación > __%
G32: TIEMPO | H32: Variación < __% | I32: Variac. entre __% y __% | J32: Variac. entre __% y __% | K32: Variación > __%
G33: PERSONAS | H33: Lesiones sin incapacidad | I33: Incapacidad temporal para menos del __% de los trabajadores | J33: Incapacidad permanente en menos del __% de los trabajadores. Incapacidad temporal para el __% al __% de los trabajadores. | K33: Muerte o invalidez total de una __persona Incapacidad permanente en más del __% de los trabajadores. Incapacidad temporal en más del __% de los trabajadores
D47: NIVEL DE RIESGO GLOBAL | F47: =IF(K47=0,"No definido", J47/K47) -> No definido | G47: =J88 ->  | J47: =SUM(K55:K84) -> 0 | K47: =COUNT(K55:K84) -> 0
E50: COD. | F50: DESCRIPCIÓN | I50: PROBABILIDAD | J50: IMPACTO | K50: NIVEL DE RIESGO | M50: ESTADO | N50: ESTRATEGIA DE RESPUESTA
F53: Causa | G53: Evento | H53: Consecuencia
E55: R1 | F55: Causa del Riesgo | G55: Evento del Riesgo | H55: Consecuencia del Riesgo | K55: =IF(I55=0, " ",I55*J55) ->  | L55: =IF(K55=" "," ",IF(K55<$I$19,$H$18,IF(K55<$I$20,$H$19,$H$20))) -> 
E56: R2 | F56: Causa del Riesgo | G56: Evento del Riesgo | H56: Consecuencia del Riesgo | K56: =IF(I56=0, " ",I56*J56) ->  | L56: =IF(K56=" "," ",IF(K56<$I$19,$H$18,IF(K56<$I$20,$H$19,$H$20))) -> 
E57: R3 | F57: Causa del Riesgo | G57: Evento del Riesgo | H57: Consecuencia del Riesgo | L57: =IF(K57=" "," ",IF(K57<$I$19,$H$18,IF(K57<$I$20,$H$19,$H$20))) -> 
E58: R4 | F58: Causa del Riesgo | G58: Evento del Riesgo | H58: Consecuencia del Riesgo | L58: =IF(K58=" "," ",IF(K58<$I$19,$H$18,IF(K58<$I$20,$H$19,$H$20))) -> 
E59: R5 | F59: Causa del Riesgo | G59: Evento del Riesgo | H59: Consecuencia del Riesgo | L59: =IF(K59=" "," ",IF(K59<$I$19,$H$18,IF(K59<$I$20,$H$19,$H$20))) -> 
E60: R6 | F60: Causa del Riesgo | G60: Evento del Riesgo | H60: Consecuencia del Riesgo | L60: =IF(K60=" "," ",IF(K60<$I$19,$H$18,IF(K60<$I$20,$H$19,$H$20))) -> 
E61: R7 | F61: Causa del Riesgo | G61: Evento del Riesgo | H61: Consecuencia del Riesgo | K61: =IF(I61=0, " ",I61*J61) ->  | L61: =IF(K61=" "," ",IF(K61<$I$19,$H$18,IF(K61<$I$20,$H$19,$H$20))) -> 
E62: R8 | F62: Causa del Riesgo | G62: Evento del Riesgo | H62: Consecuencia del Riesgo | L62: =IF(K62=" "," ",IF(K62<$I$19,$H$18,IF(K62<$I$20,$H$19,$H$20))) -> 
E63: R9 | F63: Causa del Riesgo | G63: Evento del Riesgo | H63: Consecuencia del Riesgo | L63: =IF(K63=" "," ",IF(K63<$I$19,$H$18,IF(K63<$I$20,$H$19,$H$20))) -> 
E64: R10 | F64: Causa del Riesgo | G64: Evento del Riesgo | H64: Consecuencia del Riesgo | L64: =IF(K64=" "," ",IF(K64<$I$19,$H$18,IF(K64<$I$20,$H$19,$H$20))) -> 
E65: R11 | F65: Causa del Riesgo | G65: Evento del Riesgo | H65: Consecuencia del Riesgo | L65: =IF(K65=" "," ",IF(K65<$I$19,$H$18,IF(K65<$I$20,$H$19,$H$20))) -> 
E66: R12 | F66: Causa del Riesgo | G66: Evento del Riesgo | H66: Consecuencia del Riesgo | L66: =IF(K66=" "," ",IF(K66<$I$19,$H$18,IF(K66<$I$20,$H$19,$H$20))) -> 
E67: R13 | F67: Causa del Riesgo | G67: Evento del Riesgo | H67: Consecuencia del Riesgo | K67: =IF(I67=0, " ",I67*J67) -> 
L68: =IF(K68=" "," ",IF(K68<$I$19,$H$18,IF(K68<$I$20,$H$19,$H$20))) -> 
G88: NIVEL DE RIESGO GLOBAL | I88: =F47 -> No definido | J88: =IF(I88="No definido", " ",IF(I88<I19,H18,IF(I88<I20,H19,H20))) -> 

Sheet Caso 6 (hidden)
C6: 1. Diligencia en cada una de las casillas sombreadas los niveles definidos como escalas de probabilidad e impacto para el proyecto y los niveles de tolerancia del riesgo. 2. Diligencie la definición de la escala de impacto para las diferentes categorías de riesgos que identifiquen el proyecto.
H10: PROBABILIDAD E IMPACTO
H11: Menor | J11: Mayor
G12: Valores probabilidad
G13: Valores Impacto
H15: CRITERIOS DE ACEPTACION DEL RIESGO
H16: Nivel | I16: Valor número
I17: Minimo | J17: Máximo
H18: Aceptable | I18: =H12*H13 -> 0
H19: Tolerable
H20: Inadmisible | J20: =J12*J13 -> 0
H23: MATRIZ DE RIESGOS BASE
H25: IMPACTO
H26: =H13 -> 0 | I26: =I13 -> 0 | J26: =J13 -> 0
G27: =J12 -> 0 | H27: =$H$26*G27 -> 0 | I27: =$I$26*G27 -> 0 | J27: =$J$26*G27 -> 0 | K27: PROBABILIDAD
G28: =I12 -> 0 | H28: =$H$26*G28 -> 0 | I28: =$I$26*G28 -> 0 | J28: =$J$26*G28 -> 0
G29: =H12 -> 0 | H29: =$H$26*G29 -> 0 | I29: =$I$26*G29 -> 0 | J29: =$J$26*G29 -> 0
F30: CATERGORIAS DE RIESGO | G30: COSTO | H30: Variación < __% | I30: Variac. entre ___ y _____ | J30: Variación > __%
G31: TIEMPO | H31: Variación < __% | I31: Variac. entre ___ y _____ | J31: Variación > __%
G32: PERSONAS | H32: __ lesiones sin incapacidad | I32: Incapacidad temporal para menos del __% de los trabajadores | J32: Muerte o invalidez total de ______ (__) personas Incapacidad permanente parcial en más del __% de los trabajadores. Incapacidad temporal en más del __% de los trabajadores
G33: AMBIENTE | H33: Alteración del factor ambiental menor o igual al __%. | I33: La alteración del factor ambiental está entre ___ y ____ | J33: La alteración del factor ambiental es mayor al __%.
D46: NIVEL DE RIESGO GLOBAL | F46: =IF(K46=0,"No definido", J46/K46) -> No definido | G46: =J89 ->  | J46: =SUM(K54:K85) -> 0 | K46: =COUNT(K54:K85) -> 0
E49: COD. | F49: DESCRIPCIÓN | I49: PROBABILIDAD | J49: IMPACTO | K49: NIVEL DE RIESGO | M49: ESTADO | N49: ESTRATEGIA DE RESPUESTA
F52: Causa | G52: Evento | H52: Consecuencia
E54: R1 | F54: Causa del Riesgo | G54: Evento del Riesgo | H54: Consecuencia del Riesgo | K54: =IF(I54=0, " ",I54*J54) ->  | L54: =IF(K54=" "," ",IF(K54<$I$19,$H$18,IF(K54<$I$20,$H$19,$H$20))) -> 
E55: R2 | F55: Causa del Riesgo | G55: Evento del Riesgo | H55: Consecuencia del Riesgo | K55: =IF(I55=0, " ",I55*J55) ->  | L55: =IF(K55=" "," ",IF(K55<$I$19,$H$18,IF(K55<$I$20,$H$19,$H$20))) -> 
E56: R3 | F56: Causa del Riesgo | G56: Evento del Riesgo | H56: Consecuencia del Riesgo | L56: =IF(K56=" "," ",IF(K56<$I$19,$H$18,IF(K56<$I$20,$H$19,$H$20))) -> 
E57: R4 | F57: Causa del Riesgo | G57: Evento del Riesgo | H57: Consecuencia del Riesgo | L57: =IF(K57=" "," ",IF(K57<$I$19,$H$18,IF(K57<$I$20,$H$19,$H$20))) -> 
E58: R5 | F58: Causa del Riesgo | G58: Evento del Riesgo | H58: Consecuencia del Riesgo | L58: =IF(K58=" "," ",IF(K58<$I$19,$H$18,IF(K58<$I$20,$H$19,$H$20))) -> 
E59: R6 | F59: Causa del Riesgo | G59: Evento del Riesgo | H59: Consecuencia del Riesgo | L59: =IF(K59=" "," ",IF(K59<$I$19,$H$18,IF(K59<$I$20,$H$19,$H$20))) -> 
E60: R7 | F60: Causa del Riesgo | G60: Evento del Riesgo | H60: Consecuencia del Riesgo | K60: =IF(I60=0, " ",I60*J60) ->  | L60: =IF(K60=" "," ",IF(K60<$I$19,$H$18,IF(K60<$I$20,$H$19,$H$20))) -> 
E61: R8 | F61: Causa del Riesgo | G61: Evento del Riesgo | H61: Consecuencia del Riesgo | L61: =IF(K61=" "," ",IF(K61<$I$19,$H$18,IF(K61<$I$20,$H$19,$H$20))) -> 
E62: R9 | F62: Causa del Riesgo | G62: Evento del Riesgo | H62: Consecuencia del Riesgo | L62: =IF(K62=" "," ",IF(K62<$I$19,$H$18,IF(K62<$I$20,$H$19,$H$20))) -> 
E63: R10 | F63: Causa del Riesgo | G63: Evento del Riesgo | H63: Consecuencia del Riesgo | L63: =IF(K63=" "," ",IF(K63<$I$19,$H$18,IF(K63<$I$20,$H$19,$H$20))) -> 
E64: R11 | F64: Causa del Riesgo | G64: Evento del Riesgo | H64: Consecuencia del Riesgo | L64: =IF(K64=" "," ",IF(K64<$I$19,$H$18,IF(K64<$I$20,$H$19,$H$20))) -> 
E65: R12 | F65: Causa del Riesgo | G65: Evento del Riesgo | H65: Consecuencia del Riesgo | L65: =IF(K65=" "," ",IF(K65<$I$19,$H$18,IF(K65<$I$20,$H$19,$H$20))) -> 
K66: =IF(I66=0, " ",I66*J66) -> 
L67: =IF(K67=" "," ",IF(K67<$I$19,$H$18,IF(K67<$I$20,$H$19,$H$20))) -> 
G89: NIVEL DE RIESGO GLOBAL | I89: =F46 -> No definido | J89: =IF(I89="No definido", " ",IF(I89<I19,H18,IF(I89<I20,H19,H20))) -> 

Sheet Hoja1 (hidden)
A1: ESTADO DE LOS RIESGOS
A2: Identificado
A3: Mitigado
A4: Materializado

Sheet Valos Ganado (hidden)
D7: BAC | E7: =DESEMPEÑO!G10 -> 0
D8: %avance Prog | E8: Costo Programado (PV) | F8: Avance real % (EV) | G8: Avance real (EV) | H8: Costo real (AC) | I8: CV | J8: CPI | K8: SV | L8: SPI
D9: =DESEMPEÑO!I13 -> % | E9: =D9*E7 ->  | F9: =DESEMPEÑO!I20 -> % | G9: =F9*$E$7 ->  | H9: =DESEMPEÑO!I19 -> 0 | I9: =G9-H9 ->  | J9: =ABS(G9/H9) ->  | K9: =G9-E9 ->  | L9: =ABS(G9/E9) -> 
H10: =H9/E7 -> 
E13: PV | F13: =E9 ->  | H13: CPI | I13: =J9 -> 
E14: AC | F14: =H9 -> 0 | H14: SPI | I14: =L9 -> 
E15: EV | F15: =G9 -> 
E16: CV | F16: =I9 ->  | H16: Avance a la fecha (%) | J16: =F9 -> %
E17: SV ($) | F17: =K9 ->  | H17: Avance programado (%) | J17: =D9 -> %
H18: Rendimiento (%) | J18: =J16/J17 -> 
D22: Variable | E22: Nombre completo | F22: Descripción | G22: Fuente Información
D23: BAC | E23: Budget At Completion (Presupuesto al Terminar) | F23: Costo total presupuestado para realizar el Trabajo de grado | G23: Línea base costo
D24: PV | E24: Planned Value (Valor planeado a la fecha) | F24: Costo planeado del alcance a lograr a la fecha de corte | G24: Cronograma en Project actualizado
D25: AC | E25: Actual Cost (Cost actual) | F25: Costo real del alcance realizado | G25: Cronograma en Project actualizado
D26: AT | E26: Actual Time (Tiempo actual) | F26: Semana en la que se hace el corte | G26: Cronograma en Project actualizado
D27: EV | E27: Earned Value (Valor ganado en alcance) | F27: Costo presupuestado del trabajo realizado | G27: Cronograma en Project actualizado
D28: ES | E28: Earned Schedule (Valor ganado en tiempo) | F28: Semana de trabajo en la que se debería haber terminado el alcance realizado a la fecha | G28: Calculadora en Excel
D29: CV | E29: Cost Variance (Variación del costo) | F29: Desviación de costo de lo realizado respecto a lo realmente gastado | G29: EV-AC | Y29: 0 | Z29: 1
D30: SV | E30: Schedule variance (Variación del tiempo respecto a la programación) | F30: Desviación en semanas de lo realizado y la fecha de corte | G30: ES-AT | Y30: 1 | Z30: 1.2
D31: CPI | E31: Cost Performance Index (índice de Rendimiento de Costos) | F31: Relación de eficacia entre el costo presupuestado del alcance realizado y el costo real del mismo | G31: EV/AC
D32: SPI | E32: Schedule Performance Index (índice de Rendimiento en Programación respecto a valor de alcance) | F32: Eficacia entre el costo presupuestado del alcance realizado y el costo planeado al corte. | G32: EV/PV
D35: DATOS DEL GRAFICO
D36: Nivel
E37: Minimo | F37: Máximo | G37: Minimo | H37: Máximo
D38: Aceptable | E38: =DESEMPEÑO!K27 -> 0 | F38: 1.6 | G38: =F38-F39 -> 1.6 | H38: =F38-F39 -> 1.6 | I38: 0 | J38: 1
D39: Tolerable | E39: =DESEMPEÑO!J28 -> 0 | F39: =DESEMPEÑO!L28 -> 0 | G39: =F39-F40 -> 0 | H39: =F39-F40 -> 0 | I39: 0 | J39: 1
D40: Inadmisible | E40: 0 | F40: =DESEMPEÑO!K29 -> 0 | G40: =F40 -> 0 | H40: =F40 -> 0 | I40: 0 | J40: 1
E62: X | F62: X | G62: CPI | H62: SPI | I62: =D40 -> Inadmisible | J62: =D39 -> Tolerable | K62: =D38 -> Aceptable
E63: 0.4999 | F63: 0 | G63: =+I13 ->  | H63: =+I14 ->  | I63: =F40 -> 0 | J63: =F39 -> 0 | K63: =F38 -> 1.6
E64: 0.5 | F64: 0.5 | G64: =G63 ->  | I64: 0 | J64: 0 | K64: 1.6
E65: 0.500009 | F65: 1 | I65: 0 | J65: 0 | K65: 1.6

Sheet DESEMPEÑO (hidden)
D6: Paso 1. Con base en la "Linea Base" ingrese los valores planeados para el proyecto solicitados en el siguiente formato
E10: BAC
E11: Duración total | G11: =ROUND(IF(N11=3,INICIO!G11-INICIO!E11,IF(N11=2,(INICIO!G11-INICIO!E11)/30.4166667,IF(N11=1,(INICIO!G11-INICIO!E11)/365,0))),0) -> 12 | N11: 2
E13: Avance programado a la fecha | I13: %
D15: Paso 2. Ingrese el avance real del proyecto en el siguiente formato.
E19: Costo real a la fecha ($)
E20: Avance real a la fecha (%) | I20: %
D22: Paso 3. Ingrese los rangos de valores considerados como permisibles para las desviaciones del proyecto. (Casillas de color azul claro)
G26: Nivel | I26: Variación del CPI y SPI
G27: Aceptable | I27: >
G28: Tolerable | I28: > | J28: =K29 -> 0 | K28: < | L28: =K27 -> 0
G29: Inadmisible | I29: <

Sheet RESULTADOS DESEMPEÑO (hidden)
G8: Nivel | I8: Variación del CPI y SPI
G9: Aceptable | I9: > | K9: =+DESEMPEÑO!$K$27:$L$27 -> 0
G10: Tolerable | I10: > | J10: =K11 -> 0 | K10: < | L10: =K9 -> 0
G11: Inadmisible | I11: < | K11: =+DESEMPEÑO!$K$29:$L$29 -> 0
E14: Variación del costo | I14: =IFERROR('Valos Ganado'!F16,0) -> 0 | M14: Medida de la diferencia entre el Valor Ganado y el Costo Real
E15: Variación de la programación | I15: =IFERROR('Valos Ganado'!F17,0) -> 0 | M15: medida de la diferencia entre el Valor Ganado y el Valor Planeado
E16: Indice de Rendimiento de Costos | I16: =IFERROR('Valos Ganado'!I13,0) -> 0 | M16: Relación de eficacia entre el costo presupuestado del alcance realizado y el costo real del mismo
E17: Indice de Rendimiento en Programación | I17: =IFERROR('Valos Ganado'!I14,0) -> 0 | M17: Eficacia entre el costo presupuestado del alcance realizado y el costo planeado al corte.

Sheet SATISFACCIÓN (hidden)
D7: La métrica de Índice de Satisfacción del cliente requiere la aplicación de la encuesta de satisfacción del cliente a un representante del cliente. A continuación, se solicitará que según las políticas de su compañía, o para el tipo específico de proyecto que desee evaluar, diligencie el peso (en porcentaje) que cada uno de los aspectos debe tener dentro de la evaluación. Adicionalmente debe seleccionar de la lista desplegable el nivel aceptable para el proyecto (nivel a partir del cual el proyecto tiene un buen desempeño).
E10: SATISFACCIÓN DEL CLIENTE | H10: PESO (100%)
E12: Gerencia del Proyecto | H12: 0.25
Q13: Definición pobre e incompleta
E14: Producto del Proyecto | H14: 0.25 | Q14: Definido con deficiencias serias
Q15: Definido con algunas deficiencias
E16: Equipo de Trabajo | H16: 0.25 | Q16: Definido con deficiencias menores
Q17: Completamente definido
E18: Gestión de la Información | H18: 0.25
E20: TOTAL CLIENTE | H20: =SUM(H12,H14,H16,H18) -> 1
E23: NIVEL ACEPTABLE | H23: 5
F26: =IF(SUM($H$12,$H$14,$H$16,$H$18)=100%,"","Por favor verifique que la suma sea 100%") -> 

Sheet SATISFACCIÓN DEL CLIENTE (hidden)
E6: Cliente (Compañía/Organización): | L6: XXXXXXX XXXXXXXXXXXXXXXXXX XXXXXXX
E7: Tipo de empresa/Industria: | K7: XXXXXXXXXXXXXXX XXXXXXXXXXXXXX
E8: Representante del cliente: | K8: XXXXX XXXXXXXXXXXX | P8: Cargo/posición: | S8: XXXXXXXXXXXXXXXX
E9: Proyecto: | I9: =+INICIO!E7 -> PROYECTO XXXXXXX XXXXXXXXXXXX | Q9: Contrato N°: | S9: 0000000-000000000
C11: Creemos que su opinión es esencial para conocer el estado real del proyecto, por este motivo ponemos a su disposición la siguiente encuesta, mediante la cual usted como cliente puede transmitirnos su percepción relacionada con algunos temas que consideramos fundamentales para el proyecto. Para cada uno de los ítems a evaluar, por favor seleccione la opción que más se ajuste a su nivel de satisfacción.
D16: 1 | G16: GERENCIA DE PROYECTO | Q16: CALIFICACIÓN | T16: OBSERVACIONES
D18: 1.1 | G18: Presencia y participación del gerente de proyecto durante el ciclo de vida del mismo.
D21: 1.2. | G21: Capacidad de respuesta ante las dificultades presentadas en la ejecución del proyecto.
D24: 1.3. | G24: Disponibilidad del gerente y su equipo de trabajo para atender sus consultas, solicitudes o reclamos.
D27: 1.4. | G27: Comunicación efectiva entre el gerente de proyectos y su equipo de trabajo.
D30: 1.5. | G30: Comunicación efectiva entre el gerente del proyecto y el cliente.
D33: 1.6. | G33: Definición de los requerimientos del proyecto.
D36: 1.7. | G36: Manejo y control de cambios de alcance.
D39: 1.8. | G39: Seguimiento y control de las variables tiempo y costo del proyecto.
D42: 1.9. | G42: Cumplimiento de las fechas de entrega establecidas en el cronograma.
D45: 1.1 | G45: Costo del trabajo realizado de acuerdo al presupuesto inicial.
D48: 1.11. | G48: Identificación y análisis de riesgos.
D51: 1.12. | G51: Respuesta y manejo antes los riesgos materializados hasta el momento.
D54: 1.13. | G54: Gestión de los interesados del proyecto.
D58: 2 | G58: PRODUCTO DEL PROYECTO | Q58: CALIFICACIÓN
D60: 2.1. | G60: Cumplimiento de los requerimientos establecidos.
D63: 2.2. | G63: Calidad de los entregables.
D66: 2.3. | G66: Cumplimiento de las normas técnicas y especificaciones.
D69: 2.4. | G69: Uso de programas y herramientas requeridas para el desarrollo del producto.
D73: 3 | G73: EQUIPO DE TRABAJO
D75: 3.1. | G75: Capacidad técnica de los integrantes del equipo de trabajo
D78: 3.2. | G78: Contribución para alcanzar los objetivos del proyecto
D81: 3.3. | G81: Ejecución del trabajo de forma planificada y coordinada
D84: 3.4. | G84: Presentación personal de los integrantes del equipo de trabajo
D87: 3.5. | G87: Cumplimiento de las funciones de acuerdo al rol establecido inicialmente
D90: 3.6. | G90: Amabilidad y buen trato de los integrantes del equipo de trabajo
D94: 4 | G94: GESTIÓN DE LA INFORMACIÓN
D96: 4.1. | G96: Uso de los canales de flujo de información establecidos inicialmente.
D99: 4.2. | G99: Presentación de la documentación recibida.
D102: 4.3. | G102: Personas asignadas como emisores y receptores oficiales de la información.

Sheet Hoja3 (hidden)
A1: Totalmente Insatisfecho
A2: Insatisfecho
A3: Ni Satisfecho ni Insatisfecho
A4: Satisfecho
A5: Totalmente Satisfecho
A9: Total Desacuerdo
A10: No Estoy de Acuerdo
A11: Ni de Acuerdo ni en Desacuerdo
A12: Estoy de Acuerdo
A13: Totalmente de Acuerdo
A17: 1
A18: 2
A19: 3
A20: 4
A21: 5

Sheet RESULTADOS SATISFACCIÓN (hidden)
C6: TOTAL SATISFACCIÓN DEL CLIENTE | J6: =(H9*I9+H37*I37+H47*I47+H61*I61) -> 1.186666667
C8: COD. | D8: DESCRIPCIÓN | E8: CALIFICACIÓN | H8: SUBTOTAL | I8: FACTOR | J8: PUNTAJE
C9: 1 | D9: GERENCIA DE PROYECTO | H9: =AVERAGE(E11,E13,E15,E17,E19,E21,E23,E25,E27,E29,E31,E33,E35) -> 1 | I9: 0.2
C11: 1.1 | D11: Presencia y participación del gerente de proyecto durante el ciclo de vida del mismo. | E11: 1
C13: 1.2 | D13: Capacidad de respuesta ante las dificultades presentadas en la ejecución del proyecto. | E13: 1
C15: 1.3 | D15: Disponibilidad del gerente y su equipo de trabajo para atender sus consultas, solicitudes o reclamos. | E15: 1
C17: 1.4 | D17: Comunicación efectiva entre el gerente de proyectos y su equipo de trabajo. | E17: 1
C19: 1.5 | D19: Comunicación efectiva entre el gerente del proyecto y el cliente. | E19: 1
C21: 1.6 | D21: Definición de los requerimientos del proyecto. | E21: 1
C23: 1.7 | D23: Manejo y control de cambios de alcance. | E23: 1
C25: 1.8 | D25: Seguimiento y control de las variables tiempo y costo del proyecto. | E25: 1
C27: 1.9 | D27: Cumplimiento de las fechas de entrega establecidas en el cronograma. | E27: 1
C29: 1.10. | D29: Costo del trabajo realizado de acuerdo al presupuesto inicial. | E29: 1
C31: 1.11. | D31: Identificación y análisis de riesgos. | E31: 1
C33: 1.12. | D33: Respuesta y manejo antes los riesgos materializados hasta el momento. | E33: 1
C35: 1.13. | D35: Gestión de los interesados del proyecto. | E35: 1
C37: 2 | D37: PRODUCTO DEL PROYECTO | H37: =AVERAGE(E39,E41,E43,E45,) -> 0.8 | I37: 0.4
C39: 2.1. | D39: Cumplimiento de los requerimientos establecidos. | E39: 1
C41: 2.2. | D41: Calidad de los entregables. | E41: 1
C43: 2.3. | D43: Cumplimiento de las normas técnicas y especificaciones. | E43: 1
C45: 2.4. | D45: Uso de programas y herramientas requeridas para el desarrollo del producto. | E45: 1
C47: 3 | D47: EQUIPO DE TRABAJO | H47: =AVERAGE(E49,E51,E53,E55,E57,E59) -> 1 | I47: 0.2
C49: 3.1. | D49: Capacidad técnica de los integrantes del equipo de trabajo | E49: 1
C51: 3.2. | D51: Contribución para alcanzar los objetivos del proyecto | E51: 1
C53: 3.3. | D53: Ejecución del trabajo de forma planificada y coordinada | E53: 1
C55: 3.4. | D55: Presentación personal de los integrantes del equipo de trabajo | E55: 1
C57: 3.5. | D57: Cumplimiento de las funciones de acuerdo al rol establecido inicialmente | E57: 1
C59: 3.6. | D59: Amabilidad y buen trato de los integrantes del equipo de trabajo | E59: 1
C61: 4 | D61: GESTIÓN DE LA INFORMACIÓN | H61: =AVERAGE(E63,E65,E67) -> 2.333333333 | I61: 0.2
C63: 4.1. | D63: Uso de los canales de flujo de información establecidos inicialmente. | E63: 1
C65: 4.2. | D65: Presentación de la documentación recibida. | E65: 1
C67: 4.3. | D67: Personas asignadas como emisores y receptores oficiales de la información. | E67: 5

Sheet MOTIVACIÓN (hidden)
D7: La métrica de Motivación del equipo de trabajo requiere la aplicación de la encuesta de motivación del equipo de trabajo a tres (3) integrantes del equipo seleccionados por el encargado de la evaluación. A continuación, se solicitará que según las políticas de su compañía, o para el tipo específico de proyecto que desee evaluar, diligencie el peso (en porcentaje) que cada uno de los aspectos debe tener dentro de la evaluación. Adicionalmente debe seleccionar de la lista desplegable el nivel aceptable para el proyecto (nivel a partir del cual el proyecto tiene un buen desempeño).
E10: MOTIVACIÓN DEL EQUIPO DE TRABAJO | H10: PESO (100%)
E12: Situación Laboral | H12: 0.25
E14: Ambiente | H14: 0.25
E16: Comunicación | H16: 0.25
E18: Sistema de Incentivos | H18: 0.25
E20: TOTAL EQUIPO DE TRABAJO | H20: =SUM(H12,H14,H16,H18) -> 1
E23: NIVEL ACEPTABLE | H23: 3
F26: =IF(SUM($H$12,$H$14,$H$16,$H$18)=100%,"","Por favor verifique que la suma sea 100%") -> 

Sheet MOTIVACIÓN DEL EQUIPO (hidden)
D7: La parte de la métrica que contempla la motivación del equipo de trabajo, requiere la aplicación de la encuesta de motivación a tres (3) integrantes del equipo seleccionados al azar. A continuación, seleccione y diligencie cada una de las encuestas.
O12: Definición pobre e incompleta
O13: Definido con deficiencias serias
O14: Definido con algunas deficiencias
O15: Definido con deficiencias menores
O16: Completamente definido

Sheet MOTIVACIÓN 1 (hidden)
D7: Creemos que su opinión es esencial para conocer el estado real del proyecto, por este motivo ponemos a su disposición la siguiente encuesta, mediante la cual usted como integrante del equipo del proyecto puede transmitirnos información sobre su compromiso con el mismo, valoración relacionada con las condiciones de trabajo, el ambiente laboral, y por lo tanto con su motivación para desarrollar las funciones que le son asignadas.
D12: 1 | G12: SITUACIÓN LABORAL | P12: CALIFICACIÓN | T12: OBSERVACIONES
D14: 1.1 | G14: ¿Sus funciones y responsabilidades están bien definidas?
D17: 1.2. | G17: ¿Recibe retroalimentación sobre el desarrollo de su trabajo?
D20: 1.3. | G20: ¿Conoce las tareas que desempeñan las otras áreas que participan en el proyecto?
D23: 1.4. | G23: ¿Conoce y entiende los objetivos del proyecto?
D26: 1.5. | G26: ¿Conoce los procedimientos internos establecidos para el desarrollo del proyecto?
D29: 1.6. | G29: ¿La gerencia le proporciona las herramientas necesarias para realizar su trabajo?
D32: 1.7. | G32: ¿Considera que tiene autonomía para desarrollar sus funciones y tomar decisiones?
D35: 1.8. | G35: ¿Considera que su líder cumple las funciones correspondientes a su cargo?
D40: 2 | G40: AMBIENTE | Q40: CALIFICACIÓN
D42: 2.1. | G42: ¿Es gratificante para usted trabajar en un proyecto reconocido en la organización?
D45: 2.2. | G45: ¿La relación con sus compañeros de trabajo es buena?
D48: 2.3. | G48: ¿Se siente parte de un equipo de trabajo?
D51: 2.4. | G51: ¿Se siente participe de los éxitos y fracasos del proyecto?
D54: 2.5. | G54: ¿Le resulta fácil expresar su opinión en su grupo de trabajo?
D58: 3 | G58: COMUNICACIÓN
D60: 3.1. | G60: ¿El gerente del proyecto se comunica constantemente con el equipo de trabajo?
D63: 3.2. | G63: ¿La comunicación interna dentro de su área de trabajo funciona correctamente?
D66: 3.3. | G66: ¿El gerente se encuentra generalmente disponible para atender a los integrantes del equipo?
D69: 3.4. | G69: ¿Es usted invitado a reuniones periódicas con el fin de conocer el estado del proyecto?
D72: 4 | G72: SISTEMA DE INCENTIVOS
D74: 4.1. | G74: ¿La gerencia posee un programa de incentivos para el personal del proyecto?
D77: 4.2. | G77: ¿Recibe la formación necesaria para desempeñar correctamente su trabajo?
D80: 4.3. | G80: ¿Su jefe esta satisfecho con su labor y lo expresa a través de reconocimiento público?

Sheet MOTIVACIÓN 2 (hidden)
D7: Creemos que su opinión es esencial para conocer el estado real del proyecto, por este motivo ponemos a su disposición la siguiente encuesta, mediante la cual usted como integrante del equipo del proyecto puede transmitirnos información sobre su compromiso con el mismo, valoración relacionada con las condiciones de trabajo, el ambiente laboral, y por lo tanto con su motivación para desarrollar las funciones que le son asignadas.
D12: 1 | G12: SITUACIÓN LABORAL | P12: CALIFICACIÓN | T12: OBSERVACIONES
D14: 1.1 | G14: ¿Sus funciones y responsabilidades están bien definidas?
D17: 1.2. | G17: ¿Recibe retroalimentación sobre el desarrollo de su trabajo?
D20: 1.3. | G20: ¿Conoce las tareas que desempeñan las otras áreas que participan en el proyecto?
D23: 1.4. | G23: ¿Conoce y entiende los objetivos del proyecto?
D26: 1.5. | G26: ¿Conoce los procedimientos internos establecidos para el desarrollo del proyecto?
D29: 1.6. | G29: ¿La gerencia le proporciona las herramientas necesarias para realizar su trabajo?
D32: 1.7. | G32: ¿Considera que tiene autonomía para desarrollar sus funciones y tomar decisiones?
D35: 1.8. | G35: ¿Considera que su líder cumple las funciones correspondientes a su cargo?
D40: 2 | G40: AMBIENTE | Q40: CALIFICACIÓN
D42: 2.1. | G42: ¿Es gratificante para usted trabajar en un proyecto reconocido en la organización?
D45: 2.2. | G45: ¿La relación con sus compañeros de trabajo es buena?
D48: 2.3. | G48: ¿Se siente parte de un equipo de trabajo?
D51: 2.4. | G51: ¿Se siente participe de los éxitos y fracasos del proyecto?
D54: 2.5. | G54: ¿Le resulta fácil expresar su opinión en su grupo de trabajo?
D58: 3 | G58: COMUNICACIÓN
D60: 3.1. | G60: ¿El gerente del proyecto se comunica constantemente con el equipo de trabajo?
D63: 3.2. | G63: ¿La comunicación interna dentro de su área de trabajo funciona correctamente?
D66: 3.3. | G66: ¿El gerente se encuentra generalmente disponible para atender a los integrantes del equipo?
D69: 3.4. | G69: ¿Es usted invitado a reuniones periódicas con el fin de conocer el estado del proyecto?
D72: 4 | G72: SISTEMA DE INCENTIVOS
D74: 4.1. | G74: ¿La gerencia posee un programa de incentivos para el personal del proyecto?
D77: 4.2. | G77: ¿Recibe la formación necesaria para desempeñar correctamente su trabajo?
D80: 4.3. | G80: ¿Su jefe esta satisfecho con su labor y lo expresa a través de reconocimiento público?

Sheet MOTIVACIÓN 3 (hidden)
D7: Creemos que su opinión es esencial para conocer el estado real del proyecto, por este motivo ponemos a su disposición la siguiente encuesta, mediante la cual usted como integrante del equipo del proyecto puede transmitirnos información sobre su compromiso con el mismo, valoración relacionada con las condiciones de trabajo, el ambiente laboral, y por lo tanto con su motivación para desarrollar las funciones que le son asignadas.
D12: 1 | G12: SITUACIÓN LABORAL | P12: CALIFICACIÓN | T12: OBSERVACIONES
D14: 1.1 | G14: ¿Sus funciones y responsabilidades están bien definidas?
D17: 1.2. | G17: ¿Recibe retroalimentación sobre el desarrollo de su trabajo?
D20: 1.3. | G20: ¿Conoce las tareas que desempeñan las otras áreas que participan en el proyecto?
D23: 1.4. | G23: ¿Conoce y entiende los objetivos del proyecto?
D26: 1.5. | G26: ¿Conoce los procedimientos internos establecidos para el desarrollo del proyecto?
D29: 1.6. | G29: ¿La gerencia le proporciona las herramientas necesarias para realizar su trabajo?
D32: 1.7. | G32: ¿Considera que tiene autonomía para desarrollar sus funciones y tomar decisiones?
D35: 1.8. | G35: ¿Considera que su líder cumple las funciones correspondientes a su cargo?
D40: 2 | G40: AMBIENTE | Q40: CALIFICACIÓN
D42: 2.1. | G42: ¿Es gratificante para usted trabajar en un proyecto reconocido en la organización?
D45: 2.2. | G45: ¿La relación con sus compañeros de trabajo es buena?
D48: 2.3. | G48: ¿Se siente parte de un equipo de trabajo?
D51: 2.4. | G51: ¿Se siente participe de los éxitos y fracasos del proyecto?
D54: 2.5. | G54: ¿Le resulta fácil expresar su opinión en su grupo de trabajo?
D58: 3 | G58: COMUNICACIÓN
D60: 3.1. | G60: ¿El gerente del proyecto se comunica constantemente con el equipo de trabajo?
D63: 3.2. | G63: ¿La comunicación interna dentro de su área de trabajo funciona correctamente?
D66: 3.3. | G66: ¿El gerente se encuentra generalmente disponible para atender a los integrantes del equipo?
D69: 3.4. | G69: ¿Es usted invitado a reuniones periódicas con el fin de conocer el estado del proyecto?
D72: 4 | G72: SISTEMA DE INCENTIVOS
D74: 4.1. | G74: ¿La gerencia posee un programa de incentivos para el personal del proyecto?
D77: 4.2. | G77: ¿Recibe la formación necesaria para desempeñar correctamente su trabajo?
D80: 4.3. | G80: ¿Su jefe esta satisfecho con su labor y lo expresa a través de reconocimiento público?

Sheet RESULTADOS MOTIVACIÓN (hidden)
C6: TOTAL MOTIVACIÓN EQUIPO DE TRABAJO | J6: =(H9*I9+H27*I27+H39*I39+H49*I49) -> 3.102222222
C8: COD. | D8: DESCRIPCIÓN | E8: C1 | F8: C2 | G8: C3 | H8: SUBTOTAL | I8: FACTOR | J8: PUNTAJE
C9: 1 | D9: SITUACIÓN LABORAL | H9: =AVERAGE(H11,H13,H15,H17,H19,H21,H23,H25) -> 3.5 | I9: 0.4
C11: 1.1 | D11: ¿Sus funciones y responsabilidades están bien definidas? | E11: 1 | F11: 5 | G11: 5 | H11: =AVERAGE(E11:G11) -> 3.666666667
C13: 1.2. | D13: ¿Recibe retroalimentación sobre el desarrollo de su trabajo? | E13: 5 | F13: 5 | G13: 5 | H13: =AVERAGE(E13:G13) -> 5
C15: 1.3. | D15: ¿Conoce las tareas que desempeñan las otras áreas que participan en el proyecto? | E15: 5 | F15: 5 | G15: 5 | H15: =AVERAGE(E15:G15) -> 5
C17: 1.4. | D17: ¿Conoce y entiende los objetivos del proyecto? | E17: 1 | F17: 5 | G17: 5 | H17: =AVERAGE(E17:G17) -> 3.666666667
C19: 1.5. | D19: ¿Conoce los procedimientos internos establecidos para el desarrollo del proyecto? | E19: 5 | F19: 1 | G19: 5 | H19: =AVERAGE(E19:G19) -> 3.666666667
C21: 1.6. | D21: ¿La gerencia le proporciona las herramientas necesarias para realizar su trabajo? | E21: 1 | F21: 1 | G21: 5 | H21: =AVERAGE(E21:G21) -> 2.333333333
C23: 1.7. | D23: ¿Considera que tiene autonomía para desarrollar sus funciones y tomar decisiones? | E23: 1 | F23: 1 | G23: 5 | H23: =AVERAGE(E23:G23) -> 2.333333333
C25: 1.8. | D25: ¿Considera que su líder cumple las funciones correspondientes a su cargo? | E25: 1 | F25: 1 | G25: 5 | H25: =AVERAGE(E25:G25) -> 2.333333333
C27: 2 | D27: AMBIENTE | H27: =AVERAGE(H29,H31,H33,H35,H37) -> 2.066666667 | I27: 0.2
C29: 2.1. | D29: ¿Es gratificante para usted trabajar en un proyecto reconocido en la organización? | E29: 1 | F29: 1 | G29: 5 | H29: =AVERAGE(E29:G29) -> 2.333333333
C31: 2.2. | D31: ¿La relación con sus compañeros de trabajo es buena? | E31: 1 | F31: 1 | G31: 5 | H31: =AVERAGE(E31:G31) -> 2.333333333
C33: 2.3. | D33: ¿Se siente parte de un equipo de trabajo? | E33: 1 | F33: 1 | G33: 1 | H33: =AVERAGE(E33:G33) -> 1
C35: 2.4. | D35: ¿Se siente participe de los éxitos y fracasos del proyecto? | E35: 1 | F35: 5 | G35: 1 | H35: =AVERAGE(E35:G35) -> 2.333333333
C37: 2.5. | D37: ¿Le resulta fácil expresar su opinión en su grupo de trabajo? | E37: 1 | F37: 5 | G37: 1 | H37: =AVERAGE(E37:G37) -> 2.333333333
C39: 3 | D39: COMUNICACIÓN | H39: =AVERAGE(H41,H43,H45,H47) -> 3.666666667 | I39: 0.2
C41: 3.1. | D41: ¿El gerente del proyecto se comunica constantemente con el equipo de trabajo? | E41: 1 | F41: 5 | G41: 5 | H41: =AVERAGE(E41:G41) -> 3.666666667
C43: 3.2. | D43: ¿La comunicación interna dentro de su área de trabajo funciona correctamente? | E43: 1 | F43: 5 | G43: 5 | H43: =AVERAGE(E43:G43) -> 3.666666667
C45: 3.3. | D45: ¿El gerente se encuentra generalmente disponible para atender a los integrantes del equipo? | E45: 5 | F45: 1 | G45: 5 | H45: =AVERAGE(E45:G45) -> 3.666666667
C47: 3.4. | D47: ¿Es usted invitado a reuniones periódicas con el fin de conocer el estado del proyecto? | E47: 5 | F47: 1 | G47: 5 | H47: =AVERAGE(E47:G47) -> 3.666666667
C49: 4 | D49: SISTEMA DE INCENTIVOS | H49: =AVERAGE(H51,H53,H55) -> 2.777777778 | I49: 0.2
C51: 4.1. | D51: ¿La gerencia posee un programa de incentivos para el personal del proyecto? | E51: 5 | F51: 5 | G51: 1 | H51: =AVERAGE(E51:G51) -> 3.666666667
C53: 4.2. | D53: ¿Recibe la formación necesaria para desempeñar correctamente su trabajo? | E53: 5 | F53: 1 | G53: 1 | H53: =AVERAGE(E53:G53) -> 2.333333333
C55: 4.3. | D55: ¿Su jefe esta satisfecho con su labor y lo expresa a través de reconocimiento público? | E55: 1 | F55: 1 | G55: 5 | H55: =AVERAGE(E55:G55) -> 2.333333333

Sheet RESULTADOS GLOBALES (hidden)
D4: Proyecto: | E4: =+INICIO!E7 -> PROYECTO XXXXXXX XXXXXXXXXXXX
D5: Empresa: | E5: =+INICIO!E9 -> EMPRESA XXXXXXXXXXX XXXXXXXXXXX
D6: Fecha inicio: | F6: =+INICIO!E11 -> 1900-01-01 | I6: Fecha estimada de fin: | K6: =+INICIO!G11 -> 1901-01-01
D7: Fecha aplicación diagnóstico: | F7: =+INICIO!E13 -> XX/XX/XXXX
D8: A continuación se presenta el resumen de los resultados de la herramienta de diagnóstico de proyectos. Se presentan los resultados de cada una de las cuatro partes y algunas gráficas al respecto para facilitar el análisis de los mismos.
C9: NIVEL DE DEFINICIÓN DEL PROYECTO
E11: DESCRIPCIÓN | H11: RESULTADO | J11: ACEPTABLE | L11: MÁXIMO | M11: ESTADO
E12: 1. Integración | H12: =+'RESULTADOS DEFINICIÓN'!R11 -> 0 | J12: =+'RESULTADOS DEFINICIÓN'!U11 -> 50 | K12: =+J12*2/3 -> 33.33333333 | L12: =+'RESULTADOS DEFINICIÓN'!W11 -> 50 | N12: =+H12 -> 0
E13: 2. Alcance | H13: =+'RESULTADOS DEFINICIÓN'!R33 -> 0 | J13: =+'RESULTADOS DEFINICIÓN'!U33 -> 50 | K13: =+J13*2/3 -> 33.33333333 | L13: =+'RESULTADOS DEFINICIÓN'!W33 -> 50 | N13: =+H13 -> 0
E14: 3. Tiempo | H14: =+'RESULTADOS DEFINICIÓN'!R67 -> 0 | J14: =+'RESULTADOS DEFINICIÓN'!U67 -> 50 | K14: 33.33333333 | L14: =+'RESULTADOS DEFINICIÓN'!W67 -> 50 | N14: 0
E15: 4. Costos | H15: =+'RESULTADOS DEFINICIÓN'!R112 -> 0 | J15: =+'RESULTADOS DEFINICIÓN'!U112 -> 50 | K15: 33.33333333 | L15: =+'RESULTADOS DEFINICIÓN'!W112 -> 50 | N15: 0
E16: 5. Calidad | H16: =+'RESULTADOS DEFINICIÓN'!R138 -> 0 | J16: =+'RESULTADOS DEFINICIÓN'!U138 -> 50 | K16: 33.33333333 | L16: =+'RESULTADOS DEFINICIÓN'!W138 -> 50 | N16: 0
E17: 6. Riesgos | H17: =+'RESULTADOS DEFINICIÓN'!R160 -> 0 | J17: =+'RESULTADOS DEFINICIÓN'!U160 -> 50 | K17: 33.33333333 | L17: =+'RESULTADOS DEFINICIÓN'!W160 -> 50 | N17: 0
E18: 7. Stakeholders | H18: =+'RESULTADOS DEFINICIÓN'!R180 -> 0 | J18: =+'RESULTADOS DEFINICIÓN'!U180 -> 50 | K18: 33.33333333 | L18: =+'RESULTADOS DEFINICIÓN'!W180 -> 50 | N18: 0
E19: 8. Comunicaciones | H19: =+'RESULTADOS DEFINICIÓN'!R198 -> 0 | J19: =+'RESULTADOS DEFINICIÓN'!U198 -> 50 | K19: 33.33333333 | L19: =+'RESULTADOS DEFINICIÓN'!W198 -> 50 | N19: 0
E20: 9. Adquisiciones | H20: =+'RESULTADOS DEFINICIÓN'!R226 -> 0 | J20: =+'RESULTADOS DEFINICIÓN'!U226 -> 50 | K20: 33.33333333 | L20: =+'RESULTADOS DEFINICIÓN'!W226 -> 50 | N20: 0
E21: 10. Recursos Humanos | H21: =+'RESULTADOS DEFINICIÓN'!R252 -> 0 | J21: =+'RESULTADOS DEFINICIÓN'!U252 -> 50 | K21: 33.33333333 | L21: =+'RESULTADOS DEFINICIÓN'!W252 -> 50 | N21: 0
E23: TOTAL | H23: =SUM(H12:H21) -> 0 | J23: =SUM(J12:J21) -> 500 | K23: 333.3333333 | L23: =SUM(L12:L21) -> 500 | N23: =+H23 -> 0
F25: NIVEL DE DEFINICIÓN | J25: =+H23 -> 0 | M25: =+J25 -> 0
E27: REPRESENTACIÓN GRÁFICA DE LOS RESULTADOS POR ÁREA
C49: NIVEL GLOBAL DE RIESGO DEL PROYECTO
E52: NIVEL DE RIESGO GLOBAL | J52: ='Caso 1'!F50 -> No definido | N52: ='Caso 1'!G50 -> 
E54: *Valor tomado del último caso de matriz de riesgo seleccionado. | J54: Último caso seleccionado: CASO 1
F55: CRITERIOS DE ACEPTACION DEL RIESGO | U55: Aceptable | V55: 0
F56: Nivel | I56: Valor número | U56: Tolerable
I57: Minimo | K57: Máximo | U57: Moderado
F58: =+U55 -> Aceptable | I58: =+V55 -> 0 | K58: =+W55 -> 0 | U58: Intolerable
F59: =+U56 -> Tolerable | I59: =+V56 -> 0 | K59: =+W56 -> 0 | U59: Inadmisible | W59: 0
F60: =+U57 -> Moderado | I60: =+V57 -> 0 | K60: =+W57 -> 0
F61: =+U58 -> Intolerable | I61: 0 | K61: =+W58 -> 0
F62: =+U59 -> Inadmisible | I62: =+V59 -> 0 | K62: =+W59 -> 0
C65: INDICE DE DESEMPEÑO DEL PROYECTO
F68: Variación del costo | I68: =IFERROR('Valos Ganado'!F16,"No definido") -> No definido | M68: Medida de la diferencia entre el Valor Ganado y el Costo Real
F69: Variación de la programación | I69: =IFERROR('Valos Ganado'!F17,"No definido") -> No definido | M69: medida de la diferencia entre el Valor Ganado y el Valor Planeado
F70: Indice de Rendimiento de Costos | I70: =IFERROR('Valos Ganado'!I13,"0") -> 0 | M70: Relación de eficacia entre el costo presupuestado del alcance realizado y el costo real del mismo | U70: =+DESEMPEÑO!K27 -> 0
F71: Indice de Rendimiento en Programación | I71: =IFERROR('Valos Ganado'!I14,"0") -> 0 | M71: Eficacia entre el costo presupuestado del alcance realizado y el costo planeado al corte. | U71: =+DESEMPEÑO!K29 -> 0
C91: NIVEL DE SATISFACCIÓN DEL CLIENTE
E96: NIVEL DE SATISFACCIÓN DEL CLIENTE
E98: DESCRIPCIÓN | H98: PUNTAJE | I98: ACEPTABLE | J98: ESTADO
E100: =PROPER('RESULTADOS SATISFACCIÓN'!D9) -> Gerencia De Proyecto | H100: =+'RESULTADOS SATISFACCIÓN'!H9 -> 1 | I100: =+SATISFACCIÓN!$H$23 -> 5 | J100: =+H100 -> 1
E103: =PROPER('RESULTADOS SATISFACCIÓN'!D37) -> Producto Del Proyecto | H103: =+'RESULTADOS SATISFACCIÓN'!H37 -> 0.8 | I103: =+SATISFACCIÓN!$H$23 -> 5 | J103: =+H103 -> 0.8 | L103: =+E100 -> Gerencia De Proyecto | M103: =+H100 -> 1 | N103: =+I100 -> 5 | O103: =+N103*2/3 -> 3.333333333
L104: =+E103 -> Producto Del Proyecto | M104: =+H103 -> 0.8 | N104: =+I103 -> 5 | O104: =+N104*2/3 -> 3.333333333
L105: =+E106 -> Equipo De Trabajo | M105: =+H106 -> 1 | N105: =+I106 -> 5 | O105: =+N105*2/3 -> 3.333333333
E106: =PROPER('RESULTADOS SATISFACCIÓN'!D47) -> Equipo De Trabajo | H106: =+'RESULTADOS SATISFACCIÓN'!H47 -> 1 | I106: =+SATISFACCIÓN!$H$23 -> 5 | J106: =+H106 -> 1 | L106: =+E109 -> Gestión De La Información | M106: =+H109 -> 2.333333333 | N106: =+I109 -> 5 | O106: =+N106*2/3 -> 3.333333333
E109: =PROPER('RESULTADOS SATISFACCIÓN'!D61) -> Gestión De La Información | H109: =+'RESULTADOS SATISFACCIÓN'!H61 -> 2.333333333 | I109: =+SATISFACCIÓN!$H$23 -> 5 | J109: =+H109 -> 2.333333333
E112: TOTAL | H112: ='RESULTADOS SATISFACCIÓN'!$J$6 -> 1.186666667 | I112: =+SATISFACCIÓN!$H$23 -> 5 | J112: =+H112 -> 1.186666667
C117: NIVEL DE MOTIVACIÓN DEL EQUIPO DE TRABAJO
E121: NIVEL DE MOTIVACIÓN DEL EQUIPO DE TRABAJO
E123: DESCRIPCIÓN | H123: PUNTAJE | I123: ACEPTABLE | J123: ESTADO
E125: =PROPER('RESULTADOS MOTIVACIÓN'!D9) -> Situación Laboral | H125: =+'RESULTADOS MOTIVACIÓN'!H9 -> 3.5 | I125: =+MOTIVACIÓN!H23 -> 3 | J125: =+H125 -> 3.5
L127: =+E125 -> Situación Laboral | M127: =+H125 -> 3.5 | N127: =+I125 -> 3 | O127: =+N127*2/3 -> 2
E128: =+PROPER('RESULTADOS MOTIVACIÓN'!D27) -> Ambiente | H128: =+'RESULTADOS MOTIVACIÓN'!H27 -> 2.066666667 | I128: =+MOTIVACIÓN!H23 -> 3 | J128: =+H128 -> 2.066666667 | L128: =+E128 -> Ambiente | M128: =+H128 -> 2.066666667 | N128: =+I128 -> 3 | O128: =+N128*2/3 -> 2
L129: =+E131 -> Comunicación | M129: =+H131 -> 3.666666667 | N129: =+I131 -> 3 | O129: =+N129*2/3 -> 2
L130: =+E134 -> Sistema De Incentivos | M130: =+H134 -> 2.777777778 | N130: =+I134 -> 3 | O130: =+N130*2/3 -> 2
E131: =PROPER('RESULTADOS MOTIVACIÓN'!D39) -> Comunicación | H131: =+'RESULTADOS MOTIVACIÓN'!H39 -> 3.666666667 | I131: =+MOTIVACIÓN!H23 -> 3 | J131: =+H131 -> 3.666666667
E134: =+PROPER('RESULTADOS MOTIVACIÓN'!D49) -> Sistema De Incentivos | H134: =+'RESULTADOS MOTIVACIÓN'!H49 -> 2.777777778 | I134: =+MOTIVACIÓN!H23 -> 3 | J134: =+H134 -> 2.777777778
E137: TOTAL | H137: =+'RESULTADOS MOTIVACIÓN'!J6 -> 3.102222222 | I137: =+MOTIVACIÓN!H23 -> 3 | J137: =+H137 -> 3.102222222
